Cogmind - Beta 15 @@@ ROGUE MODE // 2025.07.13 @ 15:46:07 Player: Cracklepappy Result: Destroyed by X-72 Disruptor with Light Antimatter Reactor chain reaction Performance ------------- Evolutions (6) 3000 Regions Visited (32) 6400 Robots Destroyed (584) 2920 Value Destroyed (24934) 24934 Prototype IDs (73) 1460 Alien Tech Used (0) 0 Bonus (15872) 15872 TOTAL SCORE: 54586 Bonus ------- High Alert Combat Kills 5754 Follower Combat Kills 4100 Entered Garrisons 2000 Used RIF Installer 6500 Aligned with FarCom 300 Friendly Fire -2782 Cogmind --------- Core Integrity 0/1150 Matter 265/300 Energy 220/220 System Corruption 3% Temperature Cool (0) Movement Walking (105) Location -4/Garrison Parts ------- > --- POWER (2) -------- Micro Nuclear Core Light Antimatter Reactor > --- PROPULSION (8) --- Flexi-carbon Leg Myomer Leg Myomer Leg Advanced VSS Leg Advanced VSS Leg Advanced VSS Leg Improved Surge Thruster Improved Surge Thruster > --- UTILITY (4) ------ Advanced Hacking Suite Relay Coupler [C] (1) Relay Coupler [Sentry] (16) Relay Coupler [Hunter] (1) > --- WEAPON (5) ------- High-powered Shotgun Coil Gun Coil Gun Improved Remote Datajack Force Lance > --- INVENTORY (5) ---- Matter Compressor (250) Weapon Mount Authchip [Propulsion] Coil Gun KE Penetrator Peak State ------------ > --- POWER ------------ Micro Fission Core Micro Fission Core > --- PROPULSION ------- Cooled Nuclear Pulse Thruster Cooled Nuclear Pulse Thruster Cooled Nuclear Pulse Thruster Nuclear Pulse Array Impulse Thruster Field Propulsion Array > --- UTILITY ---------- Core Analyzer Graphene Brace Advanced Hacking Suite Relay Coupler [NC] > --- WEAPON ----------- Gauss Rifle Railgun Hypervelocity Railgun Hypervelocity Railgun Heavy Mace > --- INVENTORY -------- Advanced Heat Sink Matter Compressor Weapon Mount Authchip [Propulsion] Improved Remote Datajack [Rating: 116] Favorites ----------- Power Reinforced Fission Core Engine Cooled Ion Engine Power Core Reinforced Fission Core Reactor Light Antimatter Reactor Propulsion Light Treads Treads Light Treads Leg Advanced VSS Leg Wheel Armored Wheel Hover Unit Backup Propulsion III Flight Unit Cooled VTOL Module Utility Improved Heat Sink Device Improved Heat Sink Storage Large Storage Unit Processor Core Analyzer Hackware Hacking Suite Protection Medium Armor Plating Weapon Heavy Assault Rifle Energy Gun AWS/Thermal Energy Cannon Phase Cannon Ballistic Gun Heavy Assault Rifle Ballistic Cannon Improved Light Cannon Launcher Rocket Launcher Special Weapon Improved Remote Datajack Impact Weapon Impact Mace Slashing Weapon Ripper Piercing Weapon Force Lance Special Melee Weapon Improved Datajack Build | -11 -10 -10 -9 -9 -9 -8 -8 -8 -8 -8 -7 -7 -7 -7 -7 -7 -7 -7 -6 -6 -6 -6 -6 -6 -5 -5 -5 -5 -5 -5 -4 -4 ------- Run | Yrd Mat Min Mat Min Exi Min Mat Gar Mat Gar Fac Was Fac Gar Fac Gar Fac Gar Fac Was Fac Gar Fac Gar Fac Was Fac Gar Fac Gar Fac Gar Slots Evolved 12 | . . . 2 . . . 2 . . . 2 . . . . . . . 2 . . . . . 2 . . . . . 2 . Power 1 | . . . . . . . . . . . . . . . . . . . . . . . . . 1 . . . . . . . Propulsion 6 | . . . 1 . . . . . . . 1 . . . . . . . 1 . . . . . 1 . . . . . 2 . Utility 2 | . . . . . . . 1 . . . 1 . . . . . . . . . . . . . . . . . . . . . Weapon 3 | . . . 1 . . . 1 . . . . . . . . . . . 1 . . . . . . . . . . . . . Parts Attached 447 | 7 10 2 29 4 15 3 27 12 5 11 13 9 25 19 . 13 3 7 28 10 12 10 23 22 15 2 30 18 14 14 6 29 Power 56 | 1 3 . 3 . 2 1 3 . . 1 1 . 4 3 . . . 3 2 1 1 . 1 5 3 . 7 3 1 3 1 3 Engine 22 | 1 3 . 3 . 1 1 3 . . 1 . . 3 . . . . . . . . . . 2 . . 3 . . 1 . . Core 32 | . . . . . 1 . . . . . 1 . 1 3 . . . 3 2 1 1 . 1 2 3 . 4 3 1 2 1 2 Reactor 2 | . . . . . . . . . . . . . . . . . . . . . . . . 1 . . . . . . . 1 Propulsion 105 | 2 2 . 11 1 4 . 10 4 4 . 5 3 2 . . 1 . . 11 1 3 . 10 1 2 1 8 1 2 . 1 15 Treads 36 | 2 2 . 11 1 2 . 10 4 4 . . . . . . . . . . . . . . . . . . . . . . . Leg 6 | . . . . . . . . . . . . . . . . . . . . . . . . . . . . . . . . 6 Wheel 2 | . . . . . 2 . . . . . . . . . . . . . . . . . . . . . . . . . . . Hover 3 | . . . . . . . . . . . . . . . . . . . 1 . . . 2 . . . . . . . . . Flight 58 | . . . . . . . . . . . 5 3 2 . . 1 . . 10 1 3 . 8 1 2 1 8 1 2 . 1 9 Utility 117 | 2 2 1 2 1 3 . 9 2 1 6 5 1 6 5 . 6 1 2 8 2 5 4 3 4 3 1 6 7 6 6 1 6 Device 49 | 1 . 1 . . . . 4 2 . 5 2 1 2 2 . 5 1 1 3 1 2 2 . 4 1 1 3 1 2 1 1 . Storage 9 | 1 2 . . . 2 . 2 . 1 . 1 . . . . . . . . . . . . . . . . . . . . . Processor 16 | . . . . . . . 2 . . . 1 . 2 1 . 1 . . 4 . . . 2 . 1 . . . 1 1 . . Hackware 39 | . . . 1 . . . 1 . . 1 1 . 2 2 . . . 1 1 . 3 2 1 . 1 . 3 6 3 4 . 6 Protection 4 | . . . 1 1 1 . . . . . . . . . . . . . . 1 . . . . . . . . . . . . Artifact . | . . . . . . . . . . . . . . . . . . . . . . . . . . . . . . . . . Weapon 169 | 2 3 1 13 2 6 2 5 6 . 4 2 5 13 11 . 6 2 2 7 6 3 6 9 12 7 . 9 7 5 5 3 5 Energy Gun 11 | . 1 1 2 . 1 . . . . . . . . . . . . 1 1 1 . . . . . . 2 . . . 1 . Energy Cannon 8 | . 1 . 3 . . . . 4 . . . . . . . . . . . . . . . . . . . . . . . . Ballistic Gun 118 | 2 . . 6 . 3 2 5 2 . 3 2 4 11 11 . 5 2 1 4 3 3 6 8 10 5 . 4 4 4 3 1 4 Ballistic Cannon 5 | . . . . 1 . . . . . . . . . . . . . . 1 . . . . 1 . . . 2 . . . . Launcher 3 | . . . . 1 . . . . . . . . . . . . . . . 1 . . 1 . . . . . . . . . Special Weapon 8 | . 1 . . . . . . . . 1 . . 1 . . . . . . . . . . . 1 . 1 1 1 1 . . Impact Weapon 5 | . . . 1 . . . . . . . . . 1 . . . . . 1 . . . . . . . 1 . . 1 . . Slashing Weapon 7 | . . . . . 1 . . . . . . 1 . . . 1 . . . 1 . . . 1 1 . 1 . . . . . Piercing Weapon 1 | . . . . . . . . . . . . . . . . . . . . . . . . . . . . . . . . 1 Special Melee Weapon 3 | . . . 1 . 1 . . . . . . . . . . . . . . . . . . . . . . . . . 1 . Unidentified Prototypes 15 | . . . 5 . . . 1 . . . 1 . 1 . . . 1 . . . . . . . 1 . 4 1 . . . . Corrupted Parts 1 | . . . . . . . . . . . . . . . . . . . . . . . . . . . . 1 . . . . System Corruption 5 | . . . . . . . . . . . . . . . . . . . . . . . . . . . . 5 . . . . Parts Lost 92 | . 3 1 1 . 6 2 2 3 . 2 2 . 5 . . 3 . 3 9 . 1 . 9 1 1 . 8 2 2 4 13 9 Power 12 | . . . . . 2 . . . . . . . 1 . . . . . 1 . . . 1 1 . . 3 . . 1 1 1 Propulsion 36 | . 2 . . . 2 1 1 1 . . 2 . . . . 1 . . 6 . . . 5 . . . 1 1 . . 6 7 Utility 15 | . . . . . 1 . . 1 . 1 . . 3 . . 1 . 1 1 . . . 1 . . . 1 . 2 . 1 1 Weapon 29 | . 1 1 1 . 1 1 1 1 . 1 . . 1 . . 1 . 2 1 . 1 . 2 . 1 . 3 1 . 3 5 . Highest Loss Streak 7 | . 1 1 1 . 5 2 1 1 . 1 1 . 2 . . 2 . 2 4 . 1 . 4 1 1 . 4 1 1 2 7 5 To Critical Strikes 4 | . . . . . 4 . . . . . . . . . . . . . . . . . . . . . . . . . . . Average Backups 12 | 4 11 14 14 15 15 29 29 17 18 18 5 4 4 4 4 4 5 4 4 4 4 4 4 4 4 4 4 4 4 4 4 4 Power . | . 1 2 1 1 1 2 1 1 1 1 . . . . . . . . . . . 1 . . . . . . . . . . Propulsion 2 | 2 3 3 4 4 3 3 4 3 3 3 . . . . 1 1 1 1 . . . . . . . . . . . . . . Utility 4 | . 4 6 3 2 3 13 12 6 6 6 3 3 3 3 1 1 1 1 3 4 3 2 2 1 3 3 3 4 3 2 3 3 Weapon 3 | . 2 3 5 6 6 9 9 6 5 5 1 1 . . 1 1 1 1 . . . . . 1 . . . . . . . . Tool/Special . | . . . . . . . . . . . . . . . . . . . . . . . . . . . . . . . . . Unused Backups 71 | . 6 2 11 . 6 1 12 3 3 4 2 . 1 . . . 1 . . . 1 2 . 1 1 2 1 1 1 3 2 4 Power 11 | . . . 2 . 3 . 2 . . . 1 . . . . . 1 . . . . . . . . 1 . . . 1 . . Propulsion 11 | . 4 . . . 1 . 1 1 2 1 . . . . . . . . . . . . . . . . 1 . . . . . Utility 28 | . 2 . 3 . 2 . 6 . 1 3 . . . . . . . . . . 1 2 . 1 . 1 . . 1 2 1 2 Weapon 18 | . . 2 6 . . 1 3 2 . . 1 . . . . . . . . . . . . . . . . . . . 1 2 Tool/Special 3 | . . . . . . . . . . . . . 1 . . . . . . . . . . . 1 . . 1 . . . . Average Slot Usage (%) 92 | . 99 100 99 100 94 87 85 97 99 99 89 94 98 94 100 98 92 91 70 90 86 86 88 94 84 81 82 94 89 83 60 72 Engine 4 | . 14 14 11 11 5 5 7 . . . . . 3 . . . . . . . . . . 3 . . . 1 . . . . Core 4 | . . . . . 4 5 1 9 8 9 7 7 3 7 7 7 7 7 4 6 6 6 5 1 2 11 7 8 11 6 5 5 Treads 15 | . 27 28 32 33 32 11 19 26 27 27 . . . . . . . . . . . . . . . . . . . . . . Wheel 1 | . . . . . . 22 7 . . . . . . . . . . . . . . . . . . . . . . . . . Flight 9 | . . . . . . . . . . . 28 26 30 30 30 29 23 23 18 26 21 20 20 28 25 17 21 34 24 23 16 12 Device 8 | . 14 14 3 . . . 7 14 18 16 12 15 10 5 7 9 15 12 9 3 . 9 10 13 7 4 9 6 7 7 5 1 Storage 6 | . 14 14 11 11 12 11 9 9 9 9 2 . . . . . . . . . . . . . . . . . . . . . Processor 3 | . . . . . . . 1 3 . . . . 10 12 15 11 7 7 7 13 13 6 6 13 13 11 6 5 5 5 5 . Hackware 3 | . . . 1 7 . . . . . 1 12 13 8 9 7 7 7 9 6 6 6 6 6 . . 5 5 9 7 7 9 16 Protection 1 | . . . 5 3 6 . . . . . . . . . . . . . . 1 4 2 . . . . . . . . . . Energy Gun 1 | . 2 13 2 . . . 5 2 . . . . . . . . . . . . . . . . . . . . . . . . Energy Cannon 2 | . 8 14 4 . . . . 8 9 6 . . . . . . . . . . . . . . . . . . . . . . Ballistic Gun 21 | . 16 . 25 22 25 32 25 22 27 27 14 12 22 24 27 26 27 25 12 20 25 30 23 28 24 23 20 17 21 25 10 5 Slashing Weapon 1 | . . . . . 3 . . . . 1 7 10 3 . . . . . . 5 6 1 6 2 3 5 5 . . . . . Peak Build Rating 116 | 7 9 11 19 19 43 43 52 51 44 47 48 54 55 55 55 55 55 58 66 68 73 77 76 83 98 97 106 103 106 110 116 112 Average Rating 47 | 5 8 9 16 18 26 35 45 42 40 44 44 49 48 47 53 49 52 53 43 61 65 71 66 72 90 95 94 92 98 103 72 80 On Entrance 52 | . 7 9 11 18 18 43 35 49 38 44 44 38 52 49 53 55 52 55 56 51 60 65 75 65 83 96 94 91 92 105 102 19 Naked Turns . | . . . . . . . . . . . . . . . . . . . . . . . . . . . . . . . . . Heaviest Build 275 | 14 30 31 41 45 233 231 275 90 80 81 19 21 21 21 19 19 20 21 25 27 29 30 31 30 36 35 40 42 39 44 38 41 Greatest Support 124 | 40 40 40 60 60 60 24 62 62 60 60 20 20 20 20 20 23 23 23 28 26 32 32 34 30 41 41 41 37 40 40 53 124 Greatest Overweight (x) 9 | . 1 . 1 . 9 9 9 1 1 1 1 1 1 1 . 1 . . 2 1 . . 8 1 . 1 1 1 . 1 . 3 Average Overweight (x) . | . . . . . . 9 5 1 . 1 . . . . . . . . . . . . . . . . . . . . . . Largest Inventory Capacity 35 | 8 15 15 15 15 35 35 35 20 20 20 20 5 5 5 5 5 5 5 5 5 5 5 5 5 5 5 5 5 5 5 5 5 Average Capacity 13 | 7 12 15 15 15 19 35 32 20 20 20 5 5 5 5 5 5 5 5 5 5 5 5 5 5 5 5 5 5 5 5 5 5 Most Carried 35 | 8 15 15 15 15 29 35 35 20 20 20 19 5 5 5 5 5 5 5 5 5 5 5 5 5 5 5 5 5 5 5 5 5 Average Carried 13 | 4 11 14 14 14 15 32 31 19 19 19 5 4 4 4 5 4 4 4 4 4 4 4 4 4 4 4 4 4 4 4 4 4 Final Capacity 35 | 8 15 15 15 15 35 35 20 20 20 20 5 5 5 5 5 5 5 5 5 5 5 5 5 5 5 5 5 5 5 5 5 5 Final Carried 35 | 8 15 15 15 15 29 35 20 20 20 20 5 5 5 5 5 5 5 5 5 5 5 5 5 5 5 5 5 5 5 5 5 5 Class Distribution -------------------- 30% | Scavenger-Gunner 17% | Scavenger-Sprinter 11% | Scavenger-Mutant 11% | Hauler-Gunner 8% | Scavenger-Tank 7% | Sprinter 6% | Mutant 3% | Machinist-Sprinter Dominant Class ---------------- Mutant | -10/Materials Scavenger-Mutant | -10/Mines Scavenger-Tank | -9/Materials Scavenger-Gunner | -9/Mines Scavenger-Mutant | -9/Exiles Hauler-Gunner | -8/Mines Hauler-Gunner | -8/Materials Scavenger-Gunner | -8/Garrison Scavenger-Gunner | -8/Materials Scavenger-Gunner | -8/Garrison Sprinter | -7/Factory Mutant | -7/Waste Scavenger-Sprinter | -7/Factory Scavenger-Sprinter | -7/Garrison Scavenger-Sprinter | -7/Factory Scavenger-Sprinter | -7/Garrison Scavenger-Sprinter | -7/Factory Scavenger-Sprinter | -7/Garrison Scavenger-Sprinter | -6/Factory Scavenger-Sprinter | -6/Waste Scavenger-Gunner | -6/Factory Scavenger-Gunner | -6/Garrison Scavenger-Gunner | -6/Factory Scavenger-Sprinter | -6/Garrison Scavenger-Sprinter | -5/Factory Scavenger-Gunner | -5/Waste Scavenger-Gunner | -5/Factory Scavenger-Sprinter | -5/Garrison Scavenger-Sprinter | -5/Factory Machinist-Sprinter | -5/Garrison Mutant | -4/Factory Scavenger-Gunner | -4/Garrison Resources | -11 -10 -10 -9 -9 -9 -8 -8 -8 -8 -8 -7 -7 -7 -7 -7 -7 -7 -7 -6 -6 -6 -6 -6 -6 -5 -5 -5 -5 -5 -5 -4 -4 ----------- Run | Yrd Mat Min Mat Min Exi Min Mat Gar Mat Gar Fac Was Fac Gar Fac Gar Fac Gar Fac Was Fac Gar Fac Gar Fac Was Fac Gar Fac Gar Fac Gar Matter Collected 23564 | 308 537 20 1005 276 984 303 1415 866 372 894 164 381 832 1387 172 1213 375 577 743 306 334 1314 885 1090 619 322 1184 1314 701 1825 133 713 Remotely . | . . . . . . . . . . . . . . . . . . . . . . . . . . . . . . . . . Salvage Created 27051 | 109 600 285 1503 341 545 391 2481 1451 560 1409 126 148 1149 1319 224 1035 553 687 947 158 322 1269 753 1449 820 445 1652 757 792 1638 256 877 Parts 1444 | 11 49 20 97 9 63 20 129 89 30 81 9 8 78 78 4 57 19 44 28 9 19 55 47 63 49 14 85 28 19 75 5 53 Haulers Intercepted 28 | . 1 . 5 . . . 4 . 2 . 2 . 5 . . . 2 . 2 . . . . . 2 . 2 . 1 . . . Recyclers Shooed 17 | . 2 . . . . . 3 . 1 . . . 1 . . . 1 . 4 . 1 . 2 . . . 2 . . . . . Parts Field Recycled . | . . . . . . . . . . . . . . . . . . . . . . . . . . . . . . . . . Retrieved Matter . | . . . . . . . . . . . . . . . . . . . . . . . . . . . . . . . . . Parts Self-Destructed . | . . . . . . . . . . . . . . . . . . . . . . . . . . . . . . . . . Prevented . | . . . . . . . . . . . . . . . . . . . . . . . . . . . . . . . . . Kills | -11 -10 -10 -9 -9 -9 -8 -8 -8 -8 -8 -7 -7 -7 -7 -7 -7 -7 -7 -6 -6 -6 -6 -6 -6 -5 -5 -5 -5 -5 -5 -4 -4 ------- Run | Yrd Mat Min Mat Min Exi Min Mat Gar Mat Gar Fac Was Fac Gar Fac Gar Fac Gar Fac Was Fac Gar Fac Gar Fac Was Fac Gar Fac Gar Fac Gar Combat Hostiles Destroyed 429 | . 14 8 21 11 6 7 39 31 6 31 . . 12 28 2 25 3 17 10 . 6 21 13 22 11 1 24 10 5 26 3 16 Melee 16 | . . . . . . . . . . . . . . . . . . . . . . . . . . . . . . . 1 15 Guns 346 | . 10 4 12 5 1 7 39 18 6 14 . . 10 27 2 24 3 17 8 . 6 21 13 22 10 1 23 10 5 26 1 1 Cannons 49 | . 4 4 9 3 . . . 12 . 17 . . . . . . . . . . . . . . . . . . . . . . AOE 13 | . . . . 3 5 . . . . . . . 2 1 . . . . . . . . . . 1 . 1 . . . . . Classes Destroyed 23 | 2 6 1 4 . 2 1 . 4 . . . 1 . . . 1 . . . . . . . . . 1 . . . . . . Worker 29 | . . . 2 . . 1 3 . 1 . . . 6 . . . . . 4 . . . 5 . 3 . 3 . . . 1 . Builder 11 | . . . 1 1 . . 3 . . . . . 1 . . . . . . . . . 1 . 1 . 2 . 1 . . . Tunneler 7 | 3 . 1 1 . . . . . . . . . . . 1 . 1 . . . . . . . . . . . . . . . Hauler 28 | . 1 . 5 . . . 4 . 2 . 2 . 5 . . . 2 . 2 . . . . . 2 . 2 . 1 . . . Recycler 26 | 1 1 . 3 1 . . 3 . 2 . . . 5 . 1 . 3 . 2 . . . . . 1 . . . 2 . 1 . Mechanic 3 | . 1 . 1 . . . . . . . . . . . . . . . . . . . 1 . . . . . . . . . Operator 9 | . 2 . 1 . . . 1 . . . 1 . . . . . . . . . . . 1 . 1 . 2 . . . . . Turret 1 | . . . . . 1 . . . . . . . . . . . . . . . . . . . . . . . . . . . Watcher 20 | . 1 . 3 . . . 4 . 2 . . . . . . . 2 . 2 . . 1 . 1 . . 3 . 1 . . . Swarmer 127 | . 6 3 3 3 . . 6 7 2 3 . . 5 14 . 7 . 8 5 . 2 8 5 8 7 . 8 3 . 9 2 3 Cutter 7 | . . . . . . . . . . . . . . . . 3 . . . . . . . . . . . . . . . 4 Grunt 164 | . 8 4 9 8 . 5 24 10 . 13 . . 1 10 . 10 2 5 1 . 1 7 5 9 . . 10 3 4 10 . 5 Brawler 12 | . . . 1 . . 1 1 1 . 2 . . . 2 . 2 . . . . . . . . . . . . . 2 . . Duelist 3 | . . . . . . . . 2 . . . . . 1 . . . . . . . . . . . . . . . . . . Sentry 56 | . . . 8 . . . 7 7 2 6 . . 1 1 2 1 1 . 1 . 1 5 2 1 1 . 3 1 . 3 . 2 Demolisher 1 | . . . . . . . . . . . . . . . . . . . . . 1 . . . . . . . . . . . Specialist 6 | . . . . . . . . 1 . 2 . . . . . . . . . . . . . 1 . . . . . . . 2 Hunter 11 | . . . . . . 1 1 . 2 . . . . 1 . . . . 2 . . . . . . . . . 1 1 1 1 Programmer 33 | . . . . . . . . 2 . 5 . . 5 . . 1 . 3 1 . . . 2 3 3 . 3 3 . 2 . . Behemoth 3 | . . . . . . . . 1 . . . . . . . . . . . . 1 1 . . . . . . . . . . Compactor 1 | . . . . . . . . . . . . . . . . . . . . . . . . . . 1 . . . . . . Zionite 8 | . . . . . 8 . . . . . . . . . . . . . . . . . . . . . . . . . . . Assembled 6 | . . 1 . . 5 . . . . . . . . . . . . . . . . . . . . . . . . . . . Surgeon 1 | . . . . . . . . . . . . . . . . . . . . . . . . . . . 1 . . . . . Wasp 3 | . . . . . . . . . . . . 2 . . . . . . . . . . . . . 1 . . . . . . Thug 1 | . . . . . . . . . . . . . . . . . . . . . . 1 . . . . . . . . . . Butcher 1 | . . . . . . . . . . . . . . . . . . . . . . . . 1 . . . . . . . . Martyr 6 | . . . . . . . . . . . . 2 . . . . . . . 2 . . . . . 2 . . . . . . Infiltrator 3 | . . . . . . . . . . . . . . . . 1 . 1 . . . . . . . . . 1 . . . . Best Kill Streak 9 | 1 4 3 4 3 5 3 8 5 3 3 1 . 8 4 2 9 4 6 5 . 2 4 6 7 8 1 9 3 5 8 2 3 Combat Bots Only 9 | . 4 2 4 3 5 3 7 5 2 3 . . 3 4 1 9 3 6 5 . 2 4 3 5 5 1 7 3 4 8 2 3 Max Kills in Single Turn 4 | 1 1 1 1 2 2 1 2 1 2 1 1 1 3 2 1 2 1 2 1 1 1 2 4 2 3 1 2 2 2 2 2 1 Gunslinging 1 | . . . . . . . . . . . . . . 1 . 1 . 1 . . . 1 . 1 . . 1 1 1 1 . . Exploded 2 | . . . . 2 2 . . . . . . . 2 1 . . . . . . . . . . 1 . 1 . . . . . Melee 1 | . . . . . . . . . . . . . . . . . . . . . . . . . . . . . . . 1 1 Uniques/NPCs Destroyed 4 | . . . . . 4 . . . . . . . . . . . . . . . . . . . . . . . . . . . 8R-AWN (-9/Exiles) EX-HEX (-9/Exiles) EX-BIN (-9/Exiles) EX-DEC (-9/Exiles) Combat | -11 -10 -10 -9 -9 -9 -8 -8 -8 -8 -8 -7 -7 -7 -7 -7 -7 -7 -7 -6 -6 -6 -6 -6 -6 -5 -5 -5 -5 -5 -5 -4 -4 -------- Run | Yrd Mat Min Mat Min Exi Min Mat Gar Mat Gar Fac Was Fac Gar Fac Gar Fac Gar Fac Was Fac Gar Fac Gar Fac Was Fac Gar Fac Gar Fac Gar Hostile Shots Fired 2600 | . 86 27 76 37 78 36 112 101 24 104 88 . 117 93 6 149 68 84 148 . 43 93 137 98 86 . 175 61 56 102 165 150 Missed 1038 | . 19 9 24 7 23 9 32 25 10 34 49 . 59 41 5 75 39 28 58 . 22 41 54 41 37 . 77 28 25 32 87 48 Hits 1562 | . 67 18 52 30 55 27 80 76 14 70 39 . 58 52 1 74 29 56 90 . 21 52 83 57 49 . 98 33 31 70 78 102 Melee 23 | . . . . . . . . . . 1 . . . . . 11 . . . . . . . . . . . . . 1 . 10 Projectile 1539 | . 67 18 52 30 55 27 80 76 14 69 39 . 58 52 1 63 29 56 90 . 21 52 83 57 49 . 98 33 31 69 78 92 AOE 8 | . . . . . . . . . . . . . . . . 1 . . . . . . 2 . . . 2 . . . 2 1 Critical Strikes 64 | . . . 4 . 22 . 2 . 1 1 . . 2 . . 5 2 2 4 . . 1 4 3 1 . 1 1 3 . . 5 Actively Blocked 17 | . . . . . . . . . . . . . . . . . . . . . . 1 4 3 1 . 1 1 2 . . 4 Part Disruptions 4 | . . . . . . . . . . . . . 1 . . . . . . . . . . . 1 . . . . . . 2 Damage Taken 22980 | . 782 213 762 355 915 432 1172 1231 176 1009 359 . 926 723 5 933 263 558 1289 . 296 733 1328 855 943 . 1844 416 512 945 1460 1545 Core 4014 | . 115 58 22 . 36 36 154 120 . 59 107 . 107 119 . 175 63 72 387 . 58 79 133 174 242 . 304 39 106 88 454 707 Absorbed by Shields 1409 | . . . . . . . 12 88 . . 30 . . 23 . 53 . 303 . . . 29 . 115 . . . 216 26 315 . 199 Redirected to Shielding 52 | . . . . . . . . . . . . . . . . . . . . . 15 37 . . . . . . . . . . Regen/Repaired (Parts) 1659 | . . . 94 . . . 118 . 191 75 . 44 . . . . . . 198 74 32 243 191 . . 61 196 . 76 . 66 . Core Remaining (%) 39 | 100 . 30 . . . 76 . . . 39 . . . . . . . 8 . . . . . 2 . . . . . 22 . . Volleys Fired 1466 | 10 67 21 79 27 90 25 90 62 31 98 3 13 41 119 7 74 17 38 39 7 11 91 46 52 25 7 57 67 21 74 9 48 Largest 5 | 2 2 2 3 3 3 3 4 4 4 4 2 3 3 4 4 4 4 4 4 2 4 5 4 5 5 4 4 4 4 5 3 1 Hottest 278 | 40 100 110 159 79 76 76 99 278 156 161 53 75 80 104 97 92 97 97 102 53 120 141 120 132 149 126 126 119 146 181 103 30 Shots Fired 4091 | 20 132 41 237 77 188 74 382 241 99 258 4 25 116 199 28 243 68 121 62 14 41 274 142 182 100 30 194 127 58 246 18 50 Gun 3629 | 20 114 20 198 51 182 74 382 182 71 168 3 18 113 196 28 237 68 119 61 14 41 247 136 176 99 30 189 86 50 236 16 4 Cannon 289 | . 17 21 39 24 . . . 59 28 85 . . . . . . . . . . . . . . . . . 16 . . . . Launcher 8 | . . . . 2 6 . . . . . . . . . . . . . . . . . . . . . . . . . . . Special 165 | . 1 . . . . . . . . 5 1 7 3 3 . 6 . 2 1 . . 27 6 6 1 . 5 25 8 10 2 46 Kinetic 3505 | 20 101 5 167 75 182 74 316 146 71 168 3 18 113 196 28 237 68 119 61 14 41 247 136 176 99 30 186 102 50 236 16 4 Thermal 414 | . 31 36 70 . . . 66 95 28 85 . . . . . . . . . . . . . . . . 3 . . . . . Explosive 8 | . . . . 2 6 . . . . . . . . . . . . . . . . . . . . . . . . . . . Electromagnetic . | . . . . . . . . . . . . . . . . . . . . . . . . . . . . . . . . . Robot Hit Streak 21 | 7 15 10 10 14 9 10 15 21 9 11 5 7 5 15 6 10 10 10 11 4 7 12 7 8 7 8 7 8 7 12 7 12 Robot Miss Streak 9 | 1 5 3 3 2 5 5 5 6 3 5 . 1 4 6 3 6 3 6 5 2 5 5 9 7 4 2 8 6 4 7 6 2 Penetration Max 2 | . . . . . 2 . 1 . . 1 . . 1 2 . 1 . . 1 . 1 2 2 1 2 1 2 1 1 2 1 . Secondary Targets 68 | . 2 . . . . 3 2 . . 2 . . 1 5 . 9 2 6 1 . 2 5 4 10 3 . 4 1 1 5 . . Max Gunslinging Chain 2 | . 1 . . . . 1 1 . . 1 . . 1 2 . 1 1 1 1 . 1 1 1 2 1 . 1 1 1 1 . . Autonomous 103 | . . . . . . . 66 37 . . . . . . . . . . . . . . . . . . . . . . . . Shots Hit Robots 2331 | 17 80 27 136 55 121 49 229 126 53 106 7 28 68 98 8 123 40 72 48 13 23 142 76 109 47 21 103 71 40 114 16 65 Core Hits 1048 | 7 38 13 49 20 41 20 90 49 21 48 3 5 36 55 6 58 16 31 22 3 11 59 48 89 28 8 63 21 15 51 4 20 Critical Kills 62 | . . . . . 2 . 3 1 . . . . 4 11 . . 1 . . . 2 2 1 . 5 1 9 1 2 15 1 1 Critical Parts Destroyed 79 | . . . 1 . 9 . . . . 1 . . 2 16 1 1 1 1 3 . 3 1 3 3 3 1 7 4 6 10 2 . Critical Strikes 158 | . . . 2 . 11 . 3 1 . 1 . 2 6 28 1 2 2 1 3 1 5 3 4 4 8 3 17 5 8 28 3 6 Burn 1 | . . . 1 . . . . . . . . . . . . . . . . . . . . . . . . . . . . . Meltdown 1 | . . . . . . . . 1 . . . . . . . . . . . . . . . . . . . . . . . . Destroy 136 | . . . 1 . 11 . 3 . . 1 . 1 6 27 . 2 1 1 . 1 5 3 4 3 8 3 16 4 5 28 1 1 Smash 12 | . . . . . . . . . . . . . . 1 1 . 1 . 3 . . . . . . . . 1 3 . 2 . Sever 3 | . . . . . . . . . . . . 1 . . . . . . . . . . . 1 . . 1 . . . . . Impale 5 | . . . . . . . . . . . . . . . . . . . . . . . . . . . . . . . . 5 Melee Attacks 297 | . . . 2 . 6 . . 7 . 8 8 9 29 9 3 6 6 4 30 3 . 10 . 11 8 2 37 9 21 . 21 48 Impact 120 | . . . 2 . . . . . . . . . 7 9 3 6 6 4 30 . . . . . . . 3 9 21 . 20 . Slashing 123 | . . . . . 1 . . 7 . 8 8 9 22 . . . . . . 3 . 10 . 11 8 2 34 . . . . . Piercing 48 | . . . . . . . . . . . . . . . . . . . . . . . . . . . . . . . . 48 Sneak Attacks 60 | . . . . . 5 . . . . . 2 8 11 1 2 1 1 . 6 3 . . . . . 2 5 . 3 . 2 8 Combat Hostiles 6 | . . . . . . . . . . . . . . . . 1 . . . . . . . . . . . . . . . 5 Follow-up Attacks 1 | . . . . . . . . . . . . 1 . . . . . . . . . . . . . . . . . . . . Damage Inflicted 51898 | 166 897 398 2152 1265 2191 689 4616 2837 1088 2476 287 825 2458 1904 489 2153 823 1214 1574 498 495 2717 2012 2711 1533 615 3602 1800 986 2166 465 1796 Guns 36181 | 166 723 186 1744 528 1785 678 4593 1607 560 1361 33 248 1096 1657 169 1994 622 1214 652 226 495 2377 1805 1872 1125 449 2282 1171 442 2166 133 22 Cannons 3903 | . 159 212 404 374 . . . 997 508 1115 . . . . . . . . . . . . . . . . . 134 . . . . Explosions 2741 | . . . . 344 406 . . 79 . . . . 556 153 . . . . . . . . 207 . 343 . 653 . . . . . Melee 8981 | . . . . . . . . 154 . . 254 577 806 94 320 159 201 . 922 272 . 340 . 839 65 166 667 495 544 . 332 1774 Ramming 92 | . 15 . 4 19 . 11 23 . 20 . . . . . . . . . . . . . . . . . . . . . . . Kinetic 33953 | 166 604 22 1403 902 1785 678 3179 939 560 1361 33 248 1096 1657 169 1994 622 1214 652 226 495 2377 1805 1872 1125 449 2252 1305 442 2166 133 22 Thermal 7522 | . 278 376 745 135 . . 1414 1744 508 1115 . . . . . . . . . . . . 207 . 343 . 657 . . . . . Explosive 1324 | . . . . 209 406 . . . . . . . 556 153 . . . . . . . . . . . . . . . . . . Electromagnetic 26 | . . . . . . . . . . . . . . . . . . . . . . . . . . . 26 . . . . . Impact 3067 | . . . . . . . . . . . . . . 94 320 159 201 . 922 . . . . . . . . 495 544 . 332 . Slashing 4140 | . . . . . . . . 154 . . 254 577 806 . . . . . . 272 . 340 . 839 65 166 667 . . . . . Piercing 1774 | . . . . . . . . . . . . . . . . . . . . . . . . . . . . . . . . 1774 Highest Corruption 21 | . . . . . . . 1 1 2 6 . . 3 3 3 4 4 . 2 2 2 . . . 6 6 9 16 16 21 . 3 Average Corruption 5 | . . . . . . . 1 1 1 3 . . 2 3 3 3 2 . 1 2 1 . . . 5 6 7 14 16 18 . 2 Corruption Purged 8 | . . . . . . . . . . . . . . . . . 4 . . . 2 . . . . . 2 . . . . . Corruption Blocked . | . . . . . . . . . . . . . . . . . . . . . . . . . . . . . . . . . Effects 394 | . . . . . . . 13 15 9 52 . . 10 17 2 14 1 . 3 6 4 . . . 4 21 54 34 50 58 . 27 Message Errors 99 | . . . . . . . 2 5 4 12 . . 3 5 1 5 . . . 1 1 . . . . 4 18 7 8 16 . 7 Matter Fused 79 | . . . . . . . 1 . . 12 . . 1 4 1 3 . . . . 1 . . . 3 4 7 9 11 13 . 9 Heat Flow Errors 47 | . . . . . . . 2 3 1 7 . . 2 1 . 1 . . 1 2 . . . . . 4 4 5 5 7 . 2 Energy Discharges 42 | . . . . . . . 1 . . 8 . . . 3 . . . . 1 1 . . . . 1 2 5 4 7 4 . 5 Parts Rejected 8 | . . . . . . . 1 . 1 . . . . 1 . . . . . 1 . . . . . . 2 1 1 . . . Parts Fused 3 | . . . . . . . . . . 1 . . . . . . . . . . . . . . . . 1 1 . . . . Data Loss (minor) 45 | . . . . . . . 4 5 2 3 . . 2 2 . 1 1 . . 1 1 . . . . 3 6 2 7 3 . 2 Data Loss (major) 19 | . . . . . . . 1 1 . 7 . . . 1 . 1 . . . . 1 . . . . . 3 1 1 2 . . Misfires 17 | . . . . . . . 1 1 . . . . . . . 1 . . 1 . . . . . . 3 4 1 2 1 . 2 Alerts 8 | . . . . . . . . . . 1 . . 1 . . 1 . . . . . . . . . . . 2 1 2 . . Misdirections 7 | . . . . . . . . . . . . . . . . . . . . . . . . . . . . . 6 1 . . Weapon Failures 20 | . . . . . . . . . 1 1 . . 1 . . 1 . . . . . . . . . 1 4 1 1 9 . . Overload Shots . | . . . . . . . . . . . . . . . . . . . . . . . . . . . . . . . . . Overflow Damage 2349 | . . . 3 59 22 . . . . 24 94 95 160 94 167 89 15 . 582 . . . . 64 121 . 170 42 306 . 187 55 Projectiles 57 | . . . 3 30 . . . . . 24 . . . . . . . . . . . . . . . . . . . . . . Explosions 244 | . . . . 29 22 . . . . . . . 20 . . . . . . . . . . . 121 . 52 . . . . . Melee 2048 | . . . . . . . . . . . 94 95 140 94 167 89 15 . 582 . . . . 64 . . 118 42 306 . 187 55 Knockbacks 27 | . . . . 12 . . . . . . . . . 1 1 1 1 . 4 . . . . . . . . 2 3 . 2 . Impact 12 | . . . . . . . . . . . . . . 1 1 1 1 . 3 . . . . . . . . . 3 . 2 . Kinetic 10 | . . . . 8 . . . . . . . . . . . . . . . . . . . . . . . 2 . . . . Secondary 5 | . . . . 4 . . . . . . . . . . . . . . 1 . . . . . . . . . . . . . Self-Inflicted Damage 43 | . . . . . . 5 . 38 . . . . . . . . . . . . . . . . . . . . . . . . Shots 1 | . . . . . . . . 1 . . . . . . . . . . . . . . . . . . . . . . . . Rammed 14 | . 4 . 2 3 . 1 2 . 2 . . . . . . . . . . . . . . . . . . . . . . . Targets Rammed 16 | . 4 . 3 4 . 1 2 . 2 . . . . . . . . . . . . . . . . . . . . . . . Kicked . | . . . . . . . . . . . . . . . . . . . . . . . . . . . . . . . . . Crushed 2 | . . . 1 1 . . . . . . . . . . . . . . . . . . . . . . . . . . . . Highest Temperature 365 | . 200 267 136 54 157 270 345 280 204 207 . . 198 174 144 273 68 6 108 166 114 234 89 12 246 238 229 365 253 320 221 284 Average Temperature 65 | . 58 91 37 17 43 114 118 64 40 56 . . 53 46 65 70 24 4 28 87 51 58 27 5 74 94 79 83 55 91 90 62 Received Heat Transfer 4182 | . 264 87 327 159 . 171 549 335 27 306 109 . 84 63 . 108 141 106 210 . 36 186 273 164 39 . 150 22 30 77 111 48 Effects 10 | . . . . . . 3 1 . . . . . . . . 1 . . . . . . . . . . 2 1 1 . 1 . Energy Bleed 5 | . . . . . . 2 1 . . . . . . . . . . . . . . . . . . . . 1 1 . . . Interference 5 | . . . . . . 1 . . . . . . . . . 1 . . . . . . . . . . 2 . . . 1 . Siege Activations . | . . . . . . . . . . . . . . . . . . . . . . . . . . . . . . . . . Martial Activations . | . . . . . . . . . . . . . . . . . . . . . . . . . . . . . . . . . Shielding Activations . | . . . . . . . . . . . . . . . . . . . . . . . . . . . . . . . . . Robots Disrupted . | . . . . . . . . . . . . . . . . . . . . . . . . . . . . . . . . . Combat Hostiles . | . . . . . . . . . . . . . . . . . . . . . . . . . . . . . . . . . Robots Corrupted 17 | . . . . . . . . . . . . . . 1 . 1 1 . 7 . . . . . . . . 1 4 . 2 . Combat Hostiles 4 | . . . . . . . . . . . . . . . . 1 . . 2 . . . . . . . . . . . 1 . Parts Fried 35 | . . . . . . . . . . . . . . . 2 2 1 3 19 . . . . 1 . . . . 5 . 2 . Impact Corruptions 50 | . . . . . . . . . . . . . . 2 6 2 1 . 19 . . . . . . . . 1 13 . 6 . Robots Melted 1 | . . . . . . . . 1 . . . . . . . . . . . . . . . . . . . . . . . . Combat Hostiles 1 | . . . . . . . . 1 . . . . . . . . . . . . . . . . . . . . . . . . Parts Melted 14 | . . 2 2 . . . 2 3 2 1 . . . . . . . . . . . . . . . . 1 . . . . 1 Heat Transferred 10114 | . 608 925 1628 150 . . 1813 2016 629 1295 . . . . . . . . . . . . 150 . 250 . 650 . . . . . Parts Sabotaged . | . . . . . . . . . . . . . . . . . . . . . . . . . . . . . . . . . Parts Stolen . | . . . . . . . . . . . . . . . . . . . . . . . . . . . . . . . . . Parts Stripped . | . . . . . . . . . . . . . . . . . . . . . . . . . . . . . . . . . Power Chain Reactions . | . . . . . . . . . . . . . . . . . . . . . . . . . . . . . . . . . Alert | -11 -10 -10 -9 -9 -9 -8 -8 -8 -8 -8 -7 -7 -7 -7 -7 -7 -7 -7 -6 -6 -6 -6 -6 -6 -5 -5 -5 -5 -5 -5 -4 -4 ------- Run | Yrd Mat Min Mat Min Exi Min Mat Gar Mat Gar Fac Was Fac Gar Fac Gar Fac Gar Fac Was Fac Gar Fac Gar Fac Was Fac Gar Fac Gar Fac Gar Maximum Alert Level 5 | . . . . . . . 1 5 3 5 4 2 2 4 3 4 3 4 4 2 2 5 4 4 4 1 3 3 2 2 1 1 Low Security (%) 37 | 100 100 100 100 100 . 100 42 . . . . . 11 . . . . . . 10 57 . . . . 37 16 . 12 15 50 73 Level 1 13 | . . . . . . . 57 11 . . . 60 64 . . . . . . 74 28 2 . . . 62 16 . 32 26 49 26 Level 2 13 | . . . . . . . . 35 17 13 . 39 24 35 . 11 . 7 . 14 13 9 . . 31 . 59 14 55 57 . . Level 3 16 | . . . . . . . . 23 82 13 . . . 35 100 20 100 25 81 . . 19 69 29 64 . 8 85 . . . . Level 4 13 | . . . . . . . . 23 . 38 100 . . 28 . 67 . 67 18 . . 24 30 70 4 . . . . . . . Level 5 4 | . . . . . . . . 6 . 34 . . . . . . . . . . . 43 . . . . . . . . . . High Security . | . . . . . . . . . . . . . . . . . . . . . . . . . . . . . . . . . Max Security . | . . . . . . . . . . . . . . . . . . . . . . . . . . . . . . . . . Peak Influence 2450 | 5 89 107 128 162 . 70 367 1742 848 2450 1336 467 604 1347 777 1523 915 1479 1265 442 450 1935 1177 1468 1109 381 910 995 555 649 340 264 Initial 1285 | . . 3 27 37 . . . 229 848 434 1285 467 207 414 707 511 799 640 776 442 123 301 910 784 770 381 74 637 511 111 340 21 Average 555 | . 20 18 58 44 . 6 213 876 749 1434 1262 382 310 871 749 1146 844 1194 937 293 233 1342 1011 1197 832 241 452 866 362 455 202 168 Influence Increases 22225 | 20 454 195 779 341 . 190 1153 1543 255 2036 339 . 1291 953 103 1062 316 889 991 16 547 1919 763 724 753 4 2242 457 386 578 350 576 Destroy 0b10 Robot/C 9392 | . 280 140 420 220 . 140 780 620 120 700 . . 320 580 40 740 100 460 220 . 220 865 330 420 165 . 540 204 132 312 36 288 Destroy 0b10 Robot/NC 722 | 20 30 10 85 10 . 5 90 . 35 . 15 . 90 10 10 . 45 . 55 . . 13 40 20 32 . 72 8 18 3 6 . Destroy Leader 1494 | . 64 30 156 40 . 30 196 30 58 30 4 . 100 30 20 40 38 60 48 . 70 30 106 40 36 . 120 24 34 30 12 18 Allied During Kill 1732 | . . . . . . . . . . 16 . . 62 1 . 50 8 17 4 . 256 638 133 52 . . 363 26 14 2 . 90 Successful Hack 674 | . 49 . 48 . . . 21 14 31 . 15 . 85 12 3 . . 12 31 . . 28 64 . 76 . 95 . 53 8 29 . Select Force Hacks 88 | . . . . . . . . . . . 50 . . . . . . . . . . . . . . . 38 . . . . . Disable Machine 783 | . . . 45 15 . 15 15 15 . 75 30 . 120 . . . . . 15 . . 36 36 . 120 . 168 24 18 9 9 18 Anti-Garrison Action 2945 | . . . . . . . . 700 . 1150 . . . 150 . 150 . 150 . . . 163 . 76 . . . 136 . 120 . 150 Destroy Structure 798 | . 1 . 10 26 . . 21 59 11 65 15 . 34 80 . 7 5 10 18 16 1 26 18 8 60 4 198 11 36 31 24 3 Partial Spotted 780 | . . . . . . . . . . . 75 . 150 . 30 15 75 45 90 . . 90 . 24 60 . 72 . 18 27 9 . Lose Combat Pursuer 2817 | . 30 15 15 30 . . 30 105 . . 135 . 330 90 . 60 45 135 510 . . 30 36 84 204 . 576 24 63 36 225 9 Influence Decreases 22038 | 20 446 133 751 403 36 190 800 154 1328 255 1453 1039 996 198 720 269 924 325 1205 1105 293 614 1377 377 1130 988 1439 393 1201 88 969 419 Entered New Map 10971 | . . 5 43 61 36 . . 124 894 235 1165 869 90 178 640 219 724 275 703 823 53 129 825 337 698 710 33 273 463 48 309 9 Time Decay 6656 | 20 426 118 642 342 . 170 630 . 434 . 198 170 416 . 80 . 140 . 392 222 190 . 342 . 262 278 556 . 398 . 230 . Search Patrol Dispatched 150 | . . . . . . . . . . . . . . . . . . . . . . . . . . . 150 . . . . . Lost Part 850 | . 20 10 10 . . 20 20 30 . 20 20 . 50 . . 30 . 30 90 . 10 . 90 10 10 . 80 20 20 40 130 90 Lost Ally 1730 | . . . . . . . . . . . 70 . 140 20 . 20 60 20 20 60 40 210 120 30 10 . 320 100 170 . . 320 Purge Threat 1681 | . . . 56 . . . 150 . . . . . 300 . . . . . . . . 275 . . 150 . 300 . 150 . 300 . Squads Dispatched 80 | . 2 . 4 . . . 6 . 2 . 4 . 9 . . . 2 . 10 . 3 . 4 . 3 . 17 . 8 . 6 . Investigation 34 | . . . 2 . . . 2 . 1 . 2 . 2 . . . . . 7 . 1 . . . 3 . 7 . 5 . 2 . Extermination 16 | . . . . . . . . . . . . . 5 . . . 1 . 2 . . . 2 . . . 2 . 2 . 2 . Reinforcement 23 | . 2 . 2 . . . 4 . 1 . 1 . 2 . . . 1 . . . . . 1 . . . 6 . 1 . 2 . Assault 4 | . . . . . . . . . . . 1 . . . . . . . . . . . 1 . . . 2 . . . . . Garrison 3 | . . . . . . . . . . . . . . . . . . . 1 . 2 . . . . . . . . . . . Intercept . | . . . . . . . . . . . . . . . . . . . . . . . . . . . . . . . . . Searches Triggered 1 | . . . . . . . . . . . . . . . . . . . . . . . . . . . 1 . . . . . Construction Impeded 6 | . . . . . . . 1 . . . . . 1 . . . . . . . . . 1 . . . 3 . . . . . Haulers Reinforced 2 | . . . . . . . . . . . . . 1 . . . . . . . . . . . . . 1 . . . . . Active Scanning Responses . | . . . . . . . . . . . . . . . . . . . . . . . . . . . . . . . . . Cargo Convoy Interrupts 2 | . . . . . . . . . . . . . 1 . . . . . . . . . . . . . 1 . . . . . Alert ID Control Effect 10 | . . . . . . . . . . . . . . . . . . . . . . . . . . . . 3 . . . 7 Stealth | -11 -10 -10 -9 -9 -9 -8 -8 -8 -8 -8 -7 -7 -7 -7 -7 -7 -7 -7 -6 -6 -6 -6 -6 -6 -5 -5 -5 -5 -5 -5 -4 -4 --------- Run | Yrd Mat Min Mat Min Exi Min Mat Gar Mat Gar Fac Was Fac Gar Fac Gar Fac Gar Fac Was Fac Gar Fac Gar Fac Was Fac Gar Fac Gar Fac Gar Distress Signals 30 | . 1 2 2 1 . . 3 . 3 . . . 3 . . . 1 . 2 . . . 2 . 3 . 2 . 3 . 2 . Communications Jammed . | . . . . . . . . . . . . . . . . . . . . . . . . . . . . . . . . . Distress Signals . | . . . . . . . . . . . . . . . . . . . . . . . . . . . . . . . . . Times Spotted 900 | . 25 9 35 13 16 7 45 31 21 36 16 6 62 37 1 36 13 28 46 6 11 37 31 34 43 6 93 28 17 36 36 39 Peak Tracking Total 14 | . 5 2 3 3 9 3 6 4 4 7 9 4 14 7 1 6 4 6 9 6 4 8 5 4 11 4 13 5 8 8 11 8 Tactical Retreats 105 | . 2 1 1 2 3 . 2 6 . . 3 . 8 2 . 2 2 6 14 . . 2 1 4 6 . 19 1 3 4 10 1 Traps | -11 -10 -10 -9 -9 -9 -8 -8 -8 -8 -8 -7 -7 -7 -7 -7 -7 -7 -7 -6 -6 -6 -6 -6 -6 -5 -5 -5 -5 -5 -5 -4 -4 ------- Run | Yrd Mat Min Mat Min Exi Min Mat Gar Mat Gar Fac Was Fac Gar Fac Gar Fac Gar Fac Was Fac Gar Fac Gar Fac Was Fac Gar Fac Gar Fac Gar Traps Triggered 86 | . 6 . 6 . . . 2 8 . 13 3 . 1 5 . 2 . 3 1 . 1 5 . 2 3 . 3 7 4 9 . 2 Indirectly . | . . . . . . . . . . . . . . . . . . . . . . . . . . . . . . . . . Trap Hack Attempts 8 | . . . 8 . . . . . . . . . . . . . . . . . . . . . . . . . . . . . Triggered . | . . . . . . . . . . . . . . . . . . . . . . . . . . . . . . . . . Disarmed 1 | . . . 1 . . . . . . . . . . . . . . . . . . . . . . . . . . . . . Reprogrammed . | . . . . . . . . . . . . . . . . . . . . . . . . . . . . . . . . . Reused . | . . . . . . . . . . . . . . . . . . . . . . . . . . . . . . . . . Traps Extracted . | . . . . . . . . . . . . . . . . . . . . . . . . . . . . . . . . . Installed 1 | . . . . 1 . . . . . . . . . . . . . . . . . . . . . . . . . . . . Triggered . | . . . . . . . . . . . . . . . . . . . . . . . . . . . . . . . . . Machines | -11 -10 -10 -9 -9 -9 -8 -8 -8 -8 -8 -7 -7 -7 -7 -7 -7 -7 -7 -6 -6 -6 -6 -6 -6 -5 -5 -5 -5 -5 -5 -4 -4 ---------- Run | Yrd Mat Min Mat Min Exi Min Mat Gar Mat Gar Fac Was Fac Gar Fac Gar Fac Gar Fac Was Fac Gar Fac Gar Fac Was Fac Gar Fac Gar Fac Gar Machines Disabled 104 | . . . 4 1 12 1 1 4 . 8 2 . 8 4 . 2 . 2 1 . . 5 3 2 10 . 14 7 2 5 1 5 Max in Single Turn 6 | . . . 1 1 2 1 1 2 . 1 1 . 2 2 . 1 . 1 1 . . 1 2 1 6 . 4 1 1 1 1 1 Garrison Access 6 | . . . . . . . . . . . . . . . . . . . 1 . . . . . 2 . 2 . 1 . . . Garrison Relay 25 | . . . . . . . . 1 . 2 . . . 2 . 2 . 2 . . . 2 . 2 . . . 5 . 4 . 3 Phase Generator 2 | . . . . . . . . 1 . . . . . 1 . . . . . . . . . . . . . . . . . . Machines Repaired . | . . . . . . . . . . . . . . . . . . . . . . . . . . . . . . . . . Machines Dismantled . | . . . . . . . . . . . . . . . . . . . . . . . . . . . . . . . . . Machines Sabotaged . | . . . . . . . . . . . . . . . . . . . . . . . . . . . . . . . . . Overloaded Fab Kills 12 | . . . . . . . . . . . 1 . . . . . . . . . . . . . . . 11 . . . . . Hacking | -11 -10 -10 -9 -9 -9 -8 -8 -8 -8 -8 -7 -7 -7 -7 -7 -7 -7 -7 -6 -6 -6 -6 -6 -6 -5 -5 -5 -5 -5 -5 -4 -4 --------- Run | Yrd Mat Min Mat Min Exi Min Mat Gar Mat Gar Fac Was Fac Gar Fac Gar Fac Gar Fac Was Fac Gar Fac Gar Fac Was Fac Gar Fac Gar Fac Gar Machines Accessed 188 | . 5 1 12 . 2 . 8 2 7 1 7 . 16 2 5 1 5 2 17 . 5 3 5 3 14 . 31 1 22 1 9 1 Terminals 110 | . 5 1 9 . . . 4 2 4 1 3 . 8 2 3 1 4 2 9 . 1 3 4 3 8 . 15 1 10 1 5 1 Fabricators 20 | . . . . . . . . . . . 2 . 3 . . . . . 4 . 1 . . . 2 . 3 . 3 . 2 . Repair Stations 16 | . . . 1 . . . 1 . 1 . . . . . . . . . 3 . 1 . . . . . 4 . 4 . 1 . Recycling Units 3 | . . . . . . . . . . . . . . . . . . . . . . . . . . . 2 . 1 . . . Scanalyzers 19 | . . . 2 . . . 2 . 1 . 1 . 3 . 1 . . . . . 1 . . . 2 . 4 . 2 . . . Garrison Access 18 | . . . . . . . 1 . 1 . 1 . 2 . 1 . 1 . 1 . 1 . 1 . 2 . 3 . 2 . 1 . Total Hacks 481 | . 19 3 39 . 2 . 26 4 21 2 14 . 40 3 10 3 12 4 44 . 13 6 18 6 33 . 76 2 53 2 25 1 Successful 229 | . 13 . 20 . 2 . 16 1 12 . 7 . 20 1 4 . 2 1 18 . 8 3 9 1 14 . 33 . 26 1 16 1 Failed 252 | . 6 3 19 . . . 10 3 9 2 7 . 20 2 6 3 10 3 26 . 5 3 9 5 19 . 43 2 27 1 9 . Catastrophic 46 | . 1 1 3 . . . 2 . . 1 2 . 3 1 1 1 2 1 3 . 1 . 1 . 7 . 9 . 3 . 3 . Database Lockouts . | . . . . . . . . . . . . . . . . . . . . . . . . . . . . . . . . . Manual 151 | . 14 3 19 . 1 . 8 . 4 . 9 . 15 2 . . . 1 14 . 2 . 4 . 10 . 20 . 15 1 9 . Terminals 286 | . 19 3 25 . . . 8 4 12 2 5 . 18 3 7 3 11 4 27 . 2 6 16 6 20 . 40 2 23 2 17 1 Fabricators 65 | . . . . . . . . . . . 5 . 10 . . . . . 13 . 5 . . . 5 . 9 . 13 . 5 . Repair Stations 28 | . . . 3 . . . 2 . 2 . . . . . . . . . 3 . 1 . . . . . 7 . 8 . 2 . Recycling Units 6 | . . . . . . . . . . . . . . . . . . . . . . . . . . . 5 . 1 . . . Scanalyzers 66 | . . . 11 . . . 14 . 6 . 1 . 8 . 2 . . . . . 3 . . . 6 . 10 . 5 . . . Garrison Access 28 | . . . . . . . 2 . 1 . 3 . 4 . 1 . 1 . 1 . 2 . 2 . 2 . 5 . 3 . 1 . Terminal Hacks 85 | . 8 . 5 . 2 . 2 1 4 . . . 6 1 1 . 1 1 6 . . 3 6 1 7 . 11 . 7 1 10 1 Record 1 | . . . . . 1 . . . . . . . . . . . . . . . . . . . . . . . . . . . Part Schematic 9 | . 3 . 2 . . . . . 3 . . . . . . . . . . . . . . . . . . . 1 . . . Robot Schematic 1 | . 1 . . . . . . . . . . . . . . . . . . . . . . . . . . . . . . . Robot Analysis 4 | . 2 . . . . . . . . . . . . . . . . . . . . . . . . . . . 1 . 1 . Prototype ID Bank 7 | . 1 . 1 . . . . . . . . . . . . . . . 1 . . . 1 . 1 . . . 1 . 1 . Open Door 3 | . . . . . . . . . . . . . . . . . . . . . . 1 . 1 . . . . . . . 1 Emergency Access Points 3 | . . . . . . . . 1 . . . . . . . . . . . . . 1 . . . . . . . 1 . . Machine Index 2 | . . . . . . . . . . . . . 1 . . . . . . . . . . . 1 . . . . . . . Terminal Index 4 | . . . . . . . . . . . . . . . . . . . . . . . . . 1 . 1 . 1 . 1 . Repair Station Index 3 | . . . . . . . . . . . . . . . . . . . . . . . . . . . 1 . 1 . 1 . Scanalyzer Index 2 | . . . . . . . . . . . . . 1 . . . . . . . . . . . . . 1 . . . . . Garrison Index 1 | . . . . . . . . . . . . . . . . . . . . . . . . . . . . . . . 1 . Unreport Threat 9 | . . . 1 . . . 1 . . . . . 1 . . . . . . . . . . . 1 . 2 . 1 . 2 . Locate Traps 17 | . . . . . . . . . 1 . . . 2 . 1 . 1 . 4 . . . 2 . 1 . 2 . 1 . 2 . Hauler Manifests 10 | . . . 1 . . . 1 . . . . . 1 . . . . . 1 . . . 2 . 1 . 2 . . . 1 . Registered Components 3 | . 1 . . . . . . . . . . . . . . . . . . . . . 1 . . . 1 . . . . . Registered Prototypes 1 | . . . . . . . . . . . . . . . . . . . . . . . . . . . 1 . . . . . Zone Layout 1 | . . . . . . . . . . . . . . . . . . . . . . . . . 1 . . . . . . . Garrison Registry 2 | . . . . . . . . . . . . . . 1 . . . 1 . . . . . . . . . . . . . . Patrol Navigation 1 | . . . . . . . . . . . . . . . . . . . . . . 1 . . . . . . . . . . Proto ID Catalog 1 | . . . . . 1 . . . . . . . . . . . . . . . . . . . . . . . . . . . Fabricator Hacks 27 | . . . . . . . . . . . 3 . 3 . . . . . 5 . 4 . . . . . 3 . 7 . 2 . Network Status 5 | . . . . . . . . . . . 1 . . . . . . . 1 . . . . . . . 1 . 1 . 1 . Load Schematic 13 | . . . . . . . . . . . 1 . 2 . . . . . 3 . 2 . . . . . 2 . 3 . . . Build 9 | . . . . . . . . . . . 1 . 1 . . . . . 1 . 2 . . . . . . . 3 . 1 . Repair Station Hacks 6 | . . . 2 . . . 2 . 2 . . . . . . . . . . . . . . . . . . . . . . . Scan Component 3 | . . . 1 . . . 1 . 1 . . . . . . . . . . . . . . . . . . . . . . . Repair 3 | . . . 1 . . . 1 . 1 . . . . . . . . . . . . . . . . . . . . . . . Recycling Unit Hacks 3 | . . . . . . . . . . . . . . . . . . . . . . . . . . . 2 . 1 . . . Retrieve Components 3 | . . . . . . . . . . . . . . . . . . . . . . . . . . . 2 . 1 . . . Scanalyzer 44 | . . . 8 . . . 10 . 5 . . . 6 . 2 . . . . . 2 . . . 3 . 6 . 2 . . . Insert Component 23 | . . . 4 . . . 5 . 2 . . . 3 . 1 . . . . . 1 . . . 1 . 4 . 2 . . . Analyze 21 | . . . 4 . . . 5 . 3 . . . 3 . 1 . . . . . 1 . . . 2 . 2 . . . . . Garrison Access Hacks 21 | . . . . . . . 1 . 1 . 1 . 3 . 1 . 1 . 1 . 1 . 1 . 2 . 4 . 3 . 1 . Unlock Access 13 | . . . . . . . 1 . 1 . 1 . 2 . 1 . 1 . . . 1 . 1 . . . 2 . 1 . 1 . Seal Access 5 | . . . . . . . . . . . . . . . . . . . 1 . . . . . 2 . 1 . 1 . . . Coupler Status 3 | . . . . . . . . . . . . . 1 . . . . . . . . . . . . . 1 . 1 . . . Unauthorized Hacks 42 | . 4 . 5 . . . 1 . . . 3 . 2 . . . . . 6 . 1 . 2 . 2 . 7 . 6 . 3 . Terminals 17 | . 4 . 5 . . . 1 . . . 2 . . . . . . . . . . . 1 . 2 . 1 . 1 . . . Assimilate 7 | . . . . . . . . . . . 2 . . . . . . . . . . . 1 . 2 . 1 . 1 . . . Skim 10 | . 4 . 5 . . . 1 . . . . . . . . . . . . . . . . . . . . . . . . . Fabricators 12 | . . . . . . . . . . . 1 . 2 . . . . . 3 . . . . . . . 2 . 2 . 2 . Prioritize 2 | . . . . . . . . . . . . . . . . . . . . . . . . . . . . . 1 . 1 . Haulers 1 | . . . . . . . . . . . . . 1 . . . . . . . . . . . . . . . . . . . Overload 2 | . . . . . . . . . . . 1 . . . . . . . . . . . . . . . 1 . . . . . Recompile 7 | . . . . . . . . . . . . . 1 . . . . . 3 . . . . . . . 1 . 1 . 1 . Repair Stations 12 | . . . . . . . . . . . . . . . . . . . 3 . 1 . . . . . 4 . 3 . 1 . Mechanics 4 | . . . . . . . . . . . . . . . . . . . . . 1 . . . . . 2 . 1 . . . Patch 8 | . . . . . . . . . . . . . . . . . . . 3 . . . . . . . 2 . 2 . 1 . Recycling Units . | . . . . . . . . . . . . . . . . . . . . . . . . . . . . . . . . . Scanalyzers . | . . . . . . . . . . . . . . . . . . . . . . . . . . . . . . . . . Garrison Access 1 | . . . . . . . . . . . . . . . . . . . . . . . 1 . . . . . . . . . Reprogram 1 | . . . . . . . . . . . . . . . . . . . . . . . 1 . . . . . . . . . Data Cores Recovered 5 | . . . . . . . 1 . . . . . 1 . . . 1 . . . . . . . . . 1 . 1 . . . Used 4 | . . . . . . . . . . . . . 1 . . . 1 . . . . . . . . . 1 . 1 . . . Hacking Detections 160 | . 5 1 12 . . . 8 1 6 1 6 . 13 1 3 1 4 2 11 . 5 2 5 3 12 . 27 1 20 1 8 1 Full Trace Events 16 | . . . 1 . . . 2 . 1 1 1 . 1 . . 1 . 1 1 . . . . . 3 . 2 . 1 . . . Feedback Events 1 | . . . . . . . . . 1 . . . . . . . . . . . . . . . . . . . . . . . Corruption 1 | . . . . . . . . . 1 . . . . . . . . . . . . . . . . . . . . . . . Feedback Blocked . | . . . . . . . . . . . . . . . . . . . . . . . . . . . . . . . . . Robot Schematics Acquired 1 | . 1 . . . . . . . . . . . . . . . . . . . . . . . . . . . . . . . Robots Built 1 | . . . . . . . . . . . . . . . . . . . . . 1 . . . . . . . . . . . Authchips 1 | . . . . . . . . . . . . . . . . . . . . . 1 . . . . . . . . . . . Time 40 | . . . . . . . . . . . . . . . . . . . . . 40 . . . . . . . . . . . Total Robot Build Rating 1 | . . . . . . . . . . . . . . . . . . . . . 1 . . . . . . . . . . . Part Schematics Acquired 24 | . 3 . 5 . . . 3 . 4 . . . 3 . 1 . . . . . 1 . . . 1 . 2 . 1 . . . Parts Built 11 | . . . . . . . . . . . 1 . 1 . . . . . 1 . 1 . . . . . . . 5 . 2 . Authchips 5 | . . . . . . . . . . . . . 1 . . . . . 1 . 1 . . . . . . . 2 . . . Time 609 | . . . . . . . . . . . 99 . 67 . . . . . 53 . 53 . . . . . . . 303 . 34 . Total Part Build Rating 73 | . . . . . . . . . . . 2 . 4 . . . . . 6 . 6 . . . . . . . 37 . 18 . Parts Repaired 3 | . . . 1 . . . 1 . 1 . . . . . . . . . . . . . . . . . . . . . . . Time 139 | . . . 32 . . . 51 . 56 . . . . . . . . . . . . . . . . . . . . . . . Parts Recycled . | . . . . . . . . . . . . . . . . . . . . . . . . . . . . . . . . . Recycled Matter . | . . . . . . . . . . . . . . . . . . . . . . . . . . . . . . . . . Retrieved Matter . | . . . . . . . . . . . . . . . . . . . . . . . . . . . . . . . . . Retrieved Components 19 | . . . . . . . . . . . . . . . . . . . . . . . . . . . 9 . 10 . . . Parts Scanalyzed 18 | . . . 3 . . . 4 . 1 . . . 3 . 1 . . . . . 1 . . . 1 . 3 . 1 . . . Part Schematics Acquired 16 | . . . 3 . . . 3 . 2 . . . 3 . 1 . . . . . 1 . . . 1 . 2 . . . . . Parts Damaged 2 | . . . . . . . 1 . . . . . . . . . . . . . . . . . . . 1 . . . . . Bothacking | -11 -10 -10 -9 -9 -9 -8 -8 -8 -8 -8 -7 -7 -7 -7 -7 -7 -7 -7 -6 -6 -6 -6 -6 -6 -5 -5 -5 -5 -5 -5 -4 -4 ------------ Run | Yrd Mat Min Mat Min Exi Min Mat Gar Mat Gar Fac Was Fac Gar Fac Gar Fac Gar Fac Was Fac Gar Fac Gar Fac Was Fac Gar Fac Gar Fac Gar Used RIF Installer 13 | . . . . . . . . 2 . 1 . . . 1 . 1 . 1 . . . 1 . 2 . . . 2 . 2 . . Hotswap 1 | . . . . . . . . . . . . . . . . . . . . . . . . 1 . . . . . . . . Code Merge 1 | . . . . . . . . . . . . . . . . . . . . . . . . . . . . . . 1 . . Threat Obfuscator 2 | . . . . . . . . . . . . . . . . . . . . . . 1 . . . . . 1 . . . . Robot Detection 1 | . . . . . . . . . . . . . . 1 . . . . . . . . . . . . . . . . . . Watcher Feeds 1 | . . . . . . . . . . . . . . . . . . . . . . . . . . . . 1 . . . . Patrol Navigation 1 | . . . . . . . . . . . . . . . . . . . . . . . . . . . . . . 1 . . Alert ID Control 1 | . . . . . . . . . . . . . . . . . . 1 . . . . . . . . . . . . . . Structural Interface 1 | . . . . . . . . . . . . . . . . 1 . . . . . . . . . . . . . . . . Program Shield 1 | . . . . . . . . 1 . . . . . . . . . . . . . . . . . . . . . . . . Autooverride 1 | . . . . . . . . . . 1 . . . . . . . . . . . . . . . . . . . . . . Crosswire 1 | . . . . . . . . . . . . . . . . . . . . . . . . 1 . . . . . . . . Robots Hacked 72 | . . . . . 5 . . . . 1 1 6 2 2 . . . 1 1 . . 1 2 . 1 . 4 14 2 10 2 17 Non-combat 17 | . . . . . 3 . . . . 1 1 . 2 . . . . . 1 . . 1 2 . 1 . 1 . 2 . 2 . Combat 55 | . . . . . 2 . . . . . . 6 . 2 . . . 1 . . . . . . . . 3 14 . 10 . 17 Autooverrided 7 | . . . . . . . . . . . . . . 1 . . . . . . . . . . . . . 2 . 2 . 2 Robot Hacks Applied 76 | . . . . . 5 . . . . 1 1 6 3 2 . . . 1 1 . . 4 3 . 1 . 4 14 3 9 2 16 parse_system 9 | . . . . . 5 . . . . . . . . . . . . . . . . 1 . . . . 1 1 . 1 . . no_distress 1 | . . . . . . . . . . . . . 1 . . . . . . . . . . . . . . . . . . . find_chute 3 | . . . . . . . . . . . 1 . . . . . . . 1 . . . . . 1 . . . . . . . find_fabricator 1 | . . . . . . . . . . . . . . . . . . . . . . . . . . . . . 1 . . . drop_inventory 5 | . . . . . . . . . . . . . 1 . . . . . . . . . 1 . . . . . 1 . 2 . purge_threat 3 | . . . . . . . . . . . . . 1 . . . . . . . . 2 . . . . . . . . . . ignore_targets 6 | . . . . . . . . . . . . 6 . . . . . . . . . . . . . . . . . . . . scatter_targeting 1 | . . . . . . . . . . . . . . . . . . . . . . . . . . . . . . . . 1 disrupt_area 1 | . . . . . . . . . . . . . . . . . . . . . . . . . . . . . . . . 1 amplify_resonance 12 | . . . . . . . . . . . . . . . . . . . . . . . . . . . 2 4 . 3 . 3 reboot_system 6 | . . . . . . . . . . . . . . . . . . . . . . . . . . . . 2 . 2 . 2 overwrite_iff 9 | . . . . . . . . . . . . . . 1 . . . . . . . . . . . . . 2 . 3 . 3 streamctrl_low 1 | . . . . . . . . . . . . . . . . . . . . . . . 1 . . . . . . . . . formatsys_low 4 | . . . . . . . . . . 1 . . . . . . . . . . . 1 1 . . . . . 1 . . . formatsys_high 14 | . . . . . . . . . . . . . . 1 . . . 1 . . . . . . . . 1 5 . . . 6 Relay Couplers Released 113 | . . . . . . . . 8 . 9 . . . 9 . 6 . 7 . . . 9 . 8 . . 4 23 3 15 . 12 Machine Destruction 109 | . . . . . . . . 4 . 9 . . . 9 . 6 . 7 . . . 9 . 8 . . 4 23 3 15 . 12 Programmers 4 | . . . . . . . . 4 . . . . . . . . . . . . . . . . . . . . . . . . Attached 26 | . . . . . . . . . . 1 . . 1 2 . . . 1 . . . 2 1 . . . 1 6 1 4 . 6 Crosswired 17 | . . . . . . . . . . . . . . . . . . . . . . . . 1 . . . 6 1 5 . 4 Merged Code Value 31 | . . . . . . . . . . . . . . . . . . . . . . . . . . . . . . 31 . . Fabnet Peak Effective % . | . . . . . . . . . . . . . . . . . . . . . . . . . . . . . . . . . Robots Rewired 22 | . . . . . . . . . . 2 . . . . . 3 . . . . . 9 . 2 . . . . . . . 6 Allies Hacked 1 | . . . . . . . . . . . . . . . . . . . . . . . 1 . . . . . . . . . Hacks Repelled . | . . . . . . . . . . . . . . . . . . . . . . . . . . . . . . . . . Allies | -11 -10 -10 -9 -9 -9 -8 -8 -8 -8 -8 -7 -7 -7 -7 -7 -7 -7 -7 -6 -6 -6 -6 -6 -6 -5 -5 -5 -5 -5 -5 -4 -4 -------- Run | Yrd Mat Min Mat Min Exi Min Mat Gar Mat Gar Fac Was Fac Gar Fac Gar Fac Gar Fac Was Fac Gar Fac Gar Fac Was Fac Gar Fac Gar Fac Gar Total Allies 142 | . . . . . . . . . . 3 2 19 . 2 . 5 . 3 . 20 1 10 3 2 2 19 2 11 13 5 . 20 Largest Group 19 | . . . . . . . . . . 3 4 19 14 1 . 3 3 2 1 19 14 13 10 2 2 18 16 3 4 1 . 9 Highest-Rated Group 684 | . . . . . . . . . . 78 88 475 363 32 . 157 72 124 32 684 509 472 308 67 52 634 559 142 150 29 . 551 Highest-Rated Ally 95 | . . . . . . . . . . 34 34 35 31 32 . 95 24 62 32 50 46 51 51 38 26 50 46 80 49 29 . 95 Total Orders 9 | . . . . . . . . . . 1 . . . . . . . . . . 1 3 1 . . . . 2 1 . . . STAY 1 | . . . . . . . . . . . . . . . . . . . . . . . . . . . . 1 . . . . FOLLOW 1 | . . . . . . . . . . . . . . . . . . . . . . . . . . . . 1 . . . . GUARD 3 | . . . . . . . . . . . . . . . . . . . . . . 3 . . . . . . . . . . AID 4 | . . . . . . . . . . 1 . . . . . . . . . . 1 . 1 . . . . . 1 . . . Ally Attacks 1243 | . . . . . . . . . . 11 7 222 55 6 . 24 17 12 7 156 56 144 61 11 . 103 163 52 38 . . 98 Total Damage 28725 | . . . . . . . . . . 614 163 3403 968 149 . 1076 457 481 177 3828 863 3913 1347 593 . 1960 3093 1324 894 . . 3422 Kills 146 | . . . . . . . . . . 4 . 7 5 1 . 12 3 6 2 7 5 23 13 6 . 5 17 7 7 1 . 15 Allies Corrupted 5 | . . . . . . . . . . . . . . 1 . . . 1 . . . . 2 . . . . . . 1 . . Allies Melted 4 | . . . . . . . . . . . . . . . . . . . . . . . 1 . . . 2 . . . . 1 Turrets Deployed 1 | . . . . . . . . . . 1 . . . . . . . . . . . . . . . . . . . . . . Intel | -11 -10 -10 -9 -9 -9 -8 -8 -8 -8 -8 -7 -7 -7 -7 -7 -7 -7 -7 -6 -6 -6 -6 -6 -6 -5 -5 -5 -5 -5 -5 -4 -4 ------- Run | Yrd Mat Min Mat Min Exi Min Mat Gar Mat Gar Fac Was Fac Gar Fac Gar Fac Gar Fac Was Fac Gar Fac Gar Fac Was Fac Gar Fac Gar Fac Gar Active Infowar (turns) 8085 | 80 2246 1638 . . . . 3 . . 458 2 . . . . . . . 221 468 396 157 95 819 563 608 330 1 . . . . Optics 2417 | . . . . . . . . . . . 2 . . . . . . . . . . . 95 819 563 608 330 . . . . . Seismic 4422 | 80 2246 1638 . . . . . . . 458 . . . . . . . . . . . . . . . . . . . . . . T.N.C. 1502 | . . . . . . . 3 . . . . . . . . . . . 221 468 396 157 . . 257 . . . . . . . Spoofing 1 | . . . . . . . . . . . . . . . . . . . . . . . . . . . . 1 . . . . Robot Analysis Total 4 | . 2 . . . . . . . . . . . . . . . . . . . . . . . . . . . 1 . 1 . Derelict Logs Recovered 1 | . . . . 1 . . . . . . . . . . . . . . . . . . . . . . . . . . . . Drone Launches . | . . . . . . . . . . . . . . . . . . . . . . . . . . . . . . . . . Drone Recoveries . | . . . . . . . . . . . . . . . . . . . . . . . . . . . . . . . . . Exploration | -11 -10 -10 -9 -9 -9 -8 -8 -8 -8 -8 -7 -7 -7 -7 -7 -7 -7 -7 -6 -6 -6 -6 -6 -6 -5 -5 -5 -5 -5 -5 -4 -4 ------------- Run | Yrd Mat Min Mat Min Exi Min Mat Gar Mat Gar Fac Was Fac Gar Fac Gar Fac Gar Fac Was Fac Gar Fac Gar Fac Was Fac Gar Fac Gar Fac Gar Turns Passed 40742 | 229 2246 2059 2935 1147 3750 1550 2832 2560 1065 3198 403 356 1008 1088 173 812 289 798 932 468 396 1313 766 819 563 608 1621 823 949 995 497 1494 Spaces Moved 40055 | 121 1170 601 1512 651 1741 643 770 941 378 1118 840 358 2215 2038 548 1262 693 1389 1836 486 492 2216 1132 1437 1332 728 3216 1492 2377 1627 1266 1429 Core 184 | 9 . . . . . . . . . . . . . . . . . . 79 . . . 4 . . . . . . . 56 36 Treads 8634 | 112 1170 601 1512 651 1736 . 415 941 378 1118 . . . . . . . . . . . . . . . . . . . . . . Legs 716 | . . . . . . . . . . . . . . . . . . . . . . . . . . . . . . . . 716 Wheels 1003 | . . . . . 5 643 355 . . . . . . . . . . . . . . . . . . . . . . . . . Hover 260 | . . . . . . . . . . . . . . . . . . . 189 . . . 71 . . . . . . . . . Flight 29258 | . . . . . . . . . . . 840 358 2215 2038 548 1262 693 1389 1568 486 492 2216 1057 1437 1332 728 3216 1492 2377 1627 1210 677 Fastest Speed 19 | 50 160 160 160 160 160 225 225 235 160 250 27 28 27 27 27 27 30 30 23 27 28 34 23 24 24 34 21 20 20 28 22 19 Average Speed 72 | 151 160 160 160 160 191 225 290 238 239 250 28 58 28 27 27 27 30 30 32 28 32 34 39 26 26 34 29 22 26 31 29 69 Slowest Speed 475 | 160 240 160 240 160 400 225 475 240 250 250 103 102 100 94 27 95 30 30 195 98 34 34 450 92 34 117 108 93 28 103 50 200 Overloaded Moves . | . . . . . . . . . . . . . . . . . . . . . . . . . . . . . . . . . Propulsion Burnouts . | . . . . . . . . . . . . . . . . . . . . . . . . . . . . . . . . . Robots Hopped 198 | . . . . . . . . . . . 14 . 23 . . . 3 1 4 . 3 1 12 . 53 . 39 8 23 5 9 . Potential Cave-ins . | . . . . . . . . . . . . . . . . . . . . . . . . . . . . . . . . . Cave-ins Triggered . | . . . . . . . . . . . . . . . . . . . . . . . . . . . . . . . . . Exploration Rate (%) 67 | 8 98 99 98 97 89 95 62 95 33 77 23 95 52 93 17 75 22 88 53 95 9 90 23 88 43 90 73 98 39 94 41 72 Regions Visited 32 Branch Regions 4 Pre-discovered Areas 4 | . . 1 2 . 1 . . . . . . . . . . . . . . . . . . . . . . . . . . . Known Exits Taken 11 | . . . . . . 1 1 . 1 . . . 1 . 1 . 1 . . . 1 . 1 . . . 1 . 1 . 1 . Unknown Exits Taken 6 | 1 1 1 1 1 1 . . . . . . . . . . . . . . . . . . . . . . . . . . . Scrap Searched 3 | . . 1 . 1 . 1 . . . . . . . . . . . . . . . . . . . . . . . . . . Spaces Dug 108 | . 1 . 2 . 1 . . 2 4 4 3 . 13 3 . 3 4 . 15 . . 1 . . 5 . 25 1 12 . 9 . Terrain Destroyed 553 | . 1 . 2 29 36 . 15 79 9 5 3 . 25 80 . 3 4 . 17 1 2 11 23 3 28 . 114 3 19 28 13 . Melee 101 | . . . 2 . 1 . . 2 . 4 3 . 13 3 . 3 4 . 15 . . 1 . . 5 . 23 1 12 . 9 . Projectile 127 | . 1 . . . 10 . 15 . 9 . . . 1 3 . . . . 2 1 2 10 6 3 5 . 28 2 5 20 4 . AOE 305 | . . . . 29 23 . . 77 . . . . 11 69 . . . . . . . . 17 . 17 . 62 . . . . . Terrain Rammed . | . . . . . . . . . . . . . . . . . . . . . . . . . . . . . . . . . Walls Destroyed . | . . . . . . . . . . . . . . . . . . . . . . . . . . . . . . . . . Machines Disabled . | . . . . . . . . . . . . . . . . . . . . . . . . . . . . . . . . . Actions | -11 -10 -10 -9 -9 -9 -8 -8 -8 -8 -8 -7 -7 -7 -7 -7 -7 -7 -7 -6 -6 -6 -6 -6 -6 -5 -5 -5 -5 -5 -5 -4 -4 --------- Run | Yrd Mat Min Mat Min Exi Min Mat Gar Mat Gar Fac Was Fac Gar Fac Gar Fac Gar Fac Was Fac Gar Fac Gar Fac Was Fac Gar Fac Gar Fac Gar Total 48475 | 145 1422 1661 1851 695 2013 694 1168 1109 482 1359 981 478 2461 2418 559 1614 726 1686 2050 795 696 2611 1337 1762 1421 1066 3668 1867 2594 1948 1335 1803 Wait 4682 | . 140 1030 118 3 97 11 205 30 40 24 92 79 137 85 . 217 1 189 92 273 150 209 118 186 24 303 319 133 106 41 24 206 Move 39653 | 120 1169 600 1511 650 1740 642 770 940 378 1116 812 357 2170 2037 548 1261 687 1386 1828 485 485 2213 1108 1436 1234 727 3141 1478 2331 1616 1248 1429 Hop 180 | . . . . . . . . . . . 14 . 21 . . . 3 1 4 . 3 1 11 . 45 . 35 5 23 5 9 . Pick Up 255 | 8 16 4 31 3 41 9 22 14 5 4 . 1 6 4 . 3 2 1 4 2 4 3 3 11 10 6 7 6 7 13 3 2 Fast Attach 225 | 7 7 . 19 . 4 . 3 1 2 1 6 5 9 16 . 6 . 3 18 5 2 . 15 6 6 4 25 10 10 3 4 28 Attach 94 | . 2 1 2 . 7 2 6 9 . 2 5 2 3 4 . 1 1 1 2 2 3 1 4 5 4 1 5 3 3 6 2 5 Detach 21 | . . . . . . . 1 1 . . 1 1 1 1 . . . 1 . 2 . . 1 1 2 . 2 . 1 . 1 4 Swap 435 | . 7 1 34 5 10 2 28 17 12 16 9 8 26 24 1 21 6 10 17 10 14 21 14 26 11 6 21 18 15 17 7 1 Drop 422 | . 10 3 44 2 18 2 41 14 12 9 19 5 18 33 . 7 3 3 16 6 6 8 17 28 16 10 19 14 15 14 7 3 Fire 1466 | 10 67 21 79 27 90 25 90 62 31 98 3 13 41 119 7 74 17 38 39 7 11 91 46 52 25 7 57 67 21 74 9 48 Melee 295 | . . . 2 . 6 . . 7 . 8 8 7 29 9 3 6 6 4 30 3 . 10 . 11 8 2 37 9 21 . 21 48 Ram 1 | . . . . . . 1 . . . . . . . . . . . . . . . . . . . . . . . . . . Kick . | . . . . . . . . . . . . . . . . . . . . . . . . . . . . . . . . . Crush 15 | . 4 . 3 4 . . 2 . 2 . . . . . . . . . . . . . . . . . . . . . . . Escape Stasis 662 | . . . . . . . . 14 . 22 12 . . 86 . 18 . 49 . . 18 54 . . 36 . . 124 41 159 . 29 Rewire 60 | . . 1 . . . . . . . 59 . . . . . . . . . . . . . . . . . . . . . . Trap 9 | . . . 8 1 . . . . . . . . . . . . . . . . . . . . . . . . . . . . Miscellaneous . | . . . . . . . . . . . . . . . . . . . . . . . . . . . . . . . . . Route ------- -11/Scrapyard -10/Materials (discovered 5 exits: *Mat x3 / *Min / [*Sub]) -10/Mines (discovered 2 exits: *Mat x2) -9/Materials (discovered 5 exits: *Mat x3 / [*Min x2]) -9/Mines (discovered 4 exits: *Mat x2 / *Exi / [Zio]) -9/Exiles (discovered 2 exits: [*Min x2]) -8/Mines (discovered 2 exits: *Mat x2) -8/Materials (discovered 2 exits: *Fac / Gar) -8/Garrison (discovered 3 exits: *Mat x3) -8/Materials -8/Garrison (discovered 3 exits: *Fac x3) -7/Factory (discovered 2 exits: [*Low] / Gar) -7/Waste -7/Factory (discovered 5 exits: *Fac x2 / [*Sto] / Gar / Gar) -7/Garrison (discovered 4 exits: *Fac x3 / *Fac) -7/Factory (discovered 3 exits: [*Sto x2] / Gar) -7/Garrison (discovered 3 exits: *Fac x2 / *Fac) -7/Factory (discovered 2 exits: [*Low] / Gar) -7/Garrison (discovered 3 exits: *Fac x3) -6/Factory (discovered 3 exits: *Fac x2 / [*Low]) -6/Waste -6/Factory -6/Garrison (discovered 4 exits: *Fac x3 / *Fac) -6/Factory (discovered 3 exits: *Fac / [*Low] / Gar) -6/Garrison (discovered 3 exits: *Fac x3) -5/Factory (discovered 3 exits: *Fac / [*Upp x2]) -5/Waste -5/Factory (discovered 3 exits: *Fac / [*Upp] / Gar) -5/Garrison (discovered 3 exits: *Fac x3) -5/Factory (discovered 3 exits: *Fac / [*Upp] / Gar) -5/Garrison (discovered 3 exits: *Fac x3) -4/Factory (discovered 3 exits: [*Res x2] / Gar) -4/Garrison (discovered 3 exits: [*Res x2] / [*Fac]) History --------- Turn | Location | Event 52 | -11/Scrapyard | Discovered new exit (range 15) 230 | -11/Scrapyard | Entered Materials 317 | -10/Materials | Build established: Mutant 507 | -10/Materials | Discovered new exit (range 16) 730 | -10/Materials | Derelicts attacked the area 1258 | -10/Materials | Discovered new exit (range 8) 1407 | -10/Materials | Discovered new exit (range 13) 1653 | -10/Materials | Discovered new exit (range 16) 1702 | -10/Materials | Discovered new exit (range 8) 1836 | -10/Materials | Build established: Scavenger-Mutant 2476 | -10/Materials | Entered Mines 2483 | -10/Mines | Core integrity fell below 50% 2525 | -10/Mines | Assembled infested the area 3874 | -10/Mines | Discovered new exit (range 7) 4170 | -10/Mines | Discovered new exit (range 5) 4259 | -10/Mines | Learned location of Storage (-7) 4535 | -10/Mines | Entered Materials 4535 | -9/Materials | Evolved 2 slots: Propulsion x1, Weapon x1 4740 | -9/Materials | Discovered new exit (range 15) 4835 | -9/Materials | Build established: Scavenger-Gunner 4955 | -9/Materials | Discovered new exit (range 4) 5139 | -9/Materials | Discovered new exit (range 15) 5604 | -9/Materials | Discovered new exit (range 13) 5747 | -9/Materials | Build established: Scavenger-Tank 6242 | -9/Materials | Learned Storage garrison access intel 6265 | -9/Materials | Identified exit to Materials 6280 | -9/Materials | Learned location of 1 exit from Storage 6289 | -9/Materials | Learned Storage emergency access door positions 6290 | -9/Materials | Learned 4 Recycling zone layouts 7349 | -9/Materials | Repaired Hvy. Assault Rifle 7357 | -9/Materials | Build established: Scavenger-Gunner 7470 | -9/Materials | Entered Mines 7496 | -9/Mines | Met a Derelict bent on vengeance 8028 | -9/Mines | Learned Materials security intel 8070 | -9/Mines | A Derelict revealed a hidden shortcut to a safe place 8185 | -9/Mines | A weapon hastily lodged in a ceiling crevice suddenly fell to the ground 8262 | -9/Mines | Received a Rocket Launcher from a helpful Derelict 8389 | -9/Mines | Found a hidden stash of uninstalled traps 8395 | -9/Mines | Deemed a non-threat by the Exiles lab entrance 8568 | -9/Mines | Build established: Scavenger-Tank 8611 | -9/Mines | Discovered new exit (range 5) 8617 | -9/Mines | Entered Exiles 8641 | -9/Exiles | Discovered new exit (range 15) 8657 | -9/Exiles | Met 8R-AWN 8685 | -9/Exiles | Met EX-HEX 8731 | -9/Exiles | Met EX-BIN 8776 | -9/Exiles | Met EX-DEC 8782 | -9/Exiles | Learned location of Zion (-7) 9088 | -9/Exiles | Build established: Scavenger-Mutant 9179 | -9/Exiles | Discovered new exit (range 12) 9393 | -9/Exiles | Aligned with FarCom system 9394 | -9/Exiles | Given EX-Vault access code 9433 | -9/Exiles | Opened EX-Vault 9442 | -9/Exiles | Found YOLO Cannon 9448 | -9/Exiles | Found Latent Energy Streamer 9492 | -9/Exiles | Found AWS/Thermal 9522 | -9/Exiles | Warned to stay clear of 0b10 Research branches 9780 | -9/Exiles | Build established: Mutant 10114 | -9/Exiles | Build established: Scavenger-Mutant 10493 | -9/Exiles | Attacked by the Exiles 10665 | -9/Exiles | Destroyed 8R-AWN 10666 | -9/Exiles | Lost 5 parts (2p2n1u) 10673 | -9/Exiles | Found 8R-AWN's Boregun 10981 | -9/Exiles | Destroyed EX-HEX 11028 | -9/Exiles | Destroyed EX-BIN 11036 | -9/Exiles | Build established: Scavenger-Gunner 11063 | -9/Exiles | Destroyed EX-DEC 11117 | -9/Exiles | Found Exp. Core Analyzer 11122 | -9/Exiles | Found Deploy-a-Sentry 11710 | -9/Exiles | Build established: Hauler-Gunner 12367 | -9/Exiles | Stole four prototypes: AWS/Thermal, Latent Energy Streamer, YOLO Cannon, Deploy-a-Sentry 12367 | -9/Exiles | Entered Mines 12534 | -8/Mines | Discovered exit to Materials (range 12) 12570 | -8/Mines | Discovered exit to Materials (range 9) 13506 | -8/Mines | Found a Scrap Suit stashed away for nefarious purposes 13511 | -8/Mines | Found Scrap Suit 13917 | -8/Mines | Entered Materials 13917 | -8/Materials | Evolved 2 slots: Utility x1, Weapon x1 14331 | -8/Materials | Destroyed 7 combat bots 14839 | -8/Materials | Repaired Imp. Assault Rifle 15365 | -8/Materials | Discovered new exit (range 16) 16581 | -8/Materials | Build established: Scavenger-Tank 16749 | -8/Materials | Identified exit to Garrison 16749 | -8/Materials | Entered Garrison 16830 | -8/Garrison | Phase Generator disabled 16999 | -8/Garrison | Triggered checkpoint 17161 | -8/Garrison | Triggered checkpoint 17312 | -8/Garrison | Spotted B-75 Beast 17315 | -8/Garrison | AWS/Thermal suddenly broke down 17326 | -8/Garrison | Destroyed B-75 Beast 17463 | -8/Garrison | Triggered checkpoint 17633 | -8/Garrison | Build established: Scavenger-Gunner 17663 | -8/Garrison | Triggered checkpoint 18059 | -8/Garrison | Discovered new exit (range 15) 18447 | -8/Garrison | Triggered checkpoint 18690 | -8/Garrison | Discovered new exit (range 3) 18741 | -8/Garrison | Triggered checkpoint 18855 | -8/Garrison | Installed Relay Interface Framework 18953 | -8/Garrison | Garrison Relay disabled 19179 | -8/Garrison | Expanded RIF knowledge: Program Shield 19278 | -8/Garrison | Discovered new exit (range 8) 19309 | -8/Garrison | Entered Materials 19441 | -8/Materials | Repaired Rnf. Fission Core? 20374 | -8/Materials | Identified exit to Garrison 20374 | -8/Materials | Entered Garrison 20439 | -8/Garrison | DAS Turret deployed 20451 | -8/Garrison | Core integrity fell below 50% 20530 | -8/Garrison | Garrison Relay disabled 20668 | -8/Garrison | Triggered checkpoint 20774 | -8/Garrison | Expanded RIF knowledge: Autooverride 20804 | -8/Garrison | Triggered checkpoint 20915 | -8/Garrison | Triggered checkpoint 20957 | -8/Garrison | Triggered checkpoint 21013 | -8/Garrison | Triggered checkpoint 21131 | -8/Garrison | Discovered new exit (range 13) 21208 | -8/Garrison | Triggered checkpoint 21243 | -8/Garrison | Garrison Relay disabled 22010 | -8/Garrison | Discovered new exit (range 11) 22084 | -8/Garrison | Triggered checkpoint 22520 | -8/Garrison | Triggered checkpoint 22656 | -8/Garrison | Triggered checkpoint 22658 | -8/Garrison | Discovered new exit (range 15) 23550 | -8/Garrison | Build established: Gunner 23572 | -8/Garrison | Entered Factory 23572 | -7/Factory | Accompanied by 3 allies 23572 | -7/Factory | Evolved 2 slots: Propulsion x1, Utility x1 23612 | -7/Factory | Identified exit to Garrison 23787 | -7/Factory | Discovered new exit (range 9) 23871 | -7/Factory | Fabricated Imp. Flight Unit? 23972 | -7/Factory | First assault squad dispatched 23975 | -7/Factory | Manually triggered Chute Trap 23975 | -7/Factory | Sucked down chute 23975 | -7/Factory | Entered Waste 23978 | -7/Waste | Spotted C-40 Crusher 24041 | -7/Waste | Spotted C-40 Crusher 24048 | -7/Waste | Spotted C-40 Crusher 24049 | -7/Waste | Spotted C-40 Crusher 24049 | -7/Waste | Spotted C-40 Crusher 24079 | -7/Waste | Discovered new exit (range 15) 24081 | -7/Waste | Spotted C-40 Crusher 24138 | -7/Waste | Warlord forces began an assault 24164 | -7/Waste | Allies destroyed C-40 Crusher 24187 | -7/Waste | Murdered 4 allies 24251 | -7/Waste | Allies destroyed C-40 Crusher 24276 | -7/Waste | Allies destroyed C-40 Crusher 24283 | -7/Waste | Allies destroyed C-40 Crusher 24331 | -7/Waste | Entered Factory 24331 | -7/Factory | Accompanied by 14 allies 24464 | -7/Factory | Build established: Scavenger-Sprinter 24469 | -7/Factory | Lost 4 allies 24532 | -7/Factory | Lost 4 allies 24583 | -7/Factory | Lost 3 allies 24741 | -7/Factory | Discovered new exit (range 12) 24746 | -7/Factory | Identified exit to Factory 24933 | -7/Factory | Discovered exit to Factory (range 15) 25043 | -7/Factory | Fabricated Cld. VTOL Module (x1) 25069 | -7/Factory | Identified exit to Garrison 25156 | -7/Factory | Discovered new exit (range 13) 25157 | -7/Factory | Cargo convoy interrupted 25266 | -7/Factory | Identified exit to Garrison 25271 | -7/Factory | Build established: Sprinter 25339 | -7/Factory | Entered Garrison 25347 | -7/Garrison | Expanded RIF knowledge: Robot Detection 25409 | -7/Garrison | Triggered checkpoint 25447 | -7/Garrison | Triggered checkpoint 25511 | -7/Garrison | Triggered checkpoint 25570 | -7/Garrison | Triggered checkpoint 25677 | -7/Garrison | Triggered checkpoint 25694 | -7/Garrison | Build established: Scavenger-Sprinter 25944 | -7/Garrison | Phase Generator disabled 25944 | -7/Garrison | Discovered exit to Factory (range 13) 26009 | -7/Garrison | Triggered checkpoint 26040 | -7/Garrison | Garrison Relay disabled 26080 | -7/Garrison | Discovered exit to Factory (range 5) 26090 | -7/Garrison | Discovered exit to Factory (range 51) 26090 | -7/Garrison | Discovered exit to Factory (range 23) 26090 | -7/Garrison | Discovered exit to Factory (range 33) 26090 | -7/Garrison | Discovered new exit (range 41) 26112 | -7/Garrison | Garrison Relay disabled 26197 | -7/Garrison | Triggered checkpoint 26293 | -7/Garrison | Triggered checkpoint 26427 | -7/Garrison | Entered Factory 26556 | -7/Factory | Discovered new exit (range 15) 26588 | -7/Factory | Discovered new exit (range 9) 26600 | -7/Factory | Identified exit to Garrison 26600 | -7/Factory | Entered Garrison 26614 | -7/Garrison | Found embedded Infiltrators 26617 | -7/Garrison | Triggered checkpoint 26652 | -7/Garrison | Garrison Relay disabled 26665 | -7/Garrison | Expanded RIF knowledge: Structural Interface 26679 | -7/Garrison | Triggered checkpoint 26686 | -7/Garrison | Triggered checkpoint 26704 | -7/Garrison | Triggered checkpoint 26713 | -7/Garrison | Core integrity fell below 50% 26726 | -7/Garrison | P-60 Hacker assimilated allied 9T-CGT(x) 26771 | -7/Garrison | Destroyed 9 combat bots 26790 | -7/Garrison | Triggered checkpoint 26904 | -7/Garrison | Spotted B-75 Beast 26923 | -7/Garrison | Discovered exit to Factory (range 5) 27236 | -7/Garrison | Discovered exit to Factory (range 10) 27256 | -7/Garrison | Triggered checkpoint 27344 | -7/Garrison | Garrison Relay disabled 27376 | -7/Garrison | Triggered checkpoint 27397 | -7/Garrison | Discovered new exit (range 5) 27412 | -7/Garrison | Entered Factory 27412 | -7/Factory | Accompanied by 3 allies 27525 | -7/Factory | Discovered new exit (range 7) 27598 | -7/Factory | Core integrity fell below 20% 27701 | -7/Factory | Identified exit to Garrison 27701 | -7/Factory | Entered Garrison 27770 | -7/Garrison | Garrison Relay disabled 27771 | -7/Garrison | Triggered checkpoint 27793 | -7/Garrison | Found embedded Infiltrators 27845 | -7/Garrison | P-60 Hacker assimilated allied UK-IBB(x) 27867 | -7/Garrison | Triggered checkpoint 27886 | -7/Garrison | Triggered checkpoint 27919 | -7/Garrison | Discovered exit to Factory (range 11) 28124 | -7/Garrison | Garrison Relay disabled 28134 | -7/Garrison | Discovered exit to Factory (range 13) 28146 | -7/Garrison | Discovered exit to Factory (range 55) 28146 | -7/Garrison | Discovered exit to Factory (range 102) 28146 | -7/Garrison | Discovered exit to Factory (range 13) 28253 | -7/Garrison | Triggered checkpoint 28361 | -7/Garrison | Triggered checkpoint 28396 | -7/Garrison | Expanded RIF knowledge: Alert ID Control 28499 | -7/Garrison | Entered Factory 28499 | -6/Factory | Accompanied by 1 ally 28499 | -6/Factory | Evolved 2 slots: Propulsion x1, Weapon x1 28886 | -6/Factory | Garrison activated, responded to threat 28927 | -6/Factory | Lost 4 parts (1p2n1w) 28929 | -6/Factory | Discovered new exit (range 15) 29186 | -6/Factory | Discovered new exit (range 4) 29253 | -6/Factory | Spotted B-75 Beast 29336 | -6/Factory | Discovered new exit (range 16) 29393 | -6/Factory | Fabricated Nuclear Pulse Array (x1) 29431 | -6/Factory | Manually triggered Chute Trap 29431 | -6/Factory | Sucked down chute 29431 | -6/Factory | Entered Waste 29432 | -6/Waste | Met a frightened Derelict 29434 | -6/Waste | Spotted C-40 Crusher 29436 | -6/Waste | Spotted C-40 Crusher 29437 | -6/Waste | Spotted C-40 Crusher 29453 | -6/Waste | Spotted C-40 Crusher 29454 | -6/Waste | Spotted C-40 Crusher 29469 | -6/Waste | Spotted C-40 Crusher 29474 | -6/Waste | Discovered new exit (range 15) 29497 | -6/Waste | Warlord forces began an assault 29503 | -6/Waste | Allies destroyed C-40 Crusher 29511 | -6/Waste | Allies destroyed C-40 Crusher 29512 | -6/Waste | Allies destroyed C-40 Crusher 29527 | -6/Waste | Allies destroyed C-40 Crusher 29530 | -6/Waste | Allies destroyed C-40 Crusher 29535 | -6/Waste | Allies destroyed C-40 Crusher 29563 | -6/Waste | Lost 3 allies 29899 | -6/Waste | Entered Factory 29899 | -6/Factory | Accompanied by 14 allies 29981 | -6/Factory | Fabricated Nuclear Pulse Array (x1) 30080 | -6/Factory | Spotted B-75 Beast 30088 | -6/Factory | Destroyed B-75 Beast 30128 | -6/Factory | Garrison activated, responded to threat 30190 | -6/Factory | Fabricated M-13 Machinist? 30222 | -6/Factory | Identified exit to Garrison 30238 | -6/Factory | Core integrity fell below 50% 30295 | -6/Factory | Entered Garrison 30295 | -6/Garrison | Accompanied by 13 allies 30308 | -6/Garrison | Spotted B-75 Beast 30342 | -6/Garrison | Destroyed B-75 Beast 30383 | -6/Garrison | Lost 6 allies 30423 | -6/Garrison | Triggered checkpoint 30457 | -6/Garrison | Garrison Relay disabled 30531 | -6/Garrison | Triggered checkpoint 30558 | -6/Garrison | Triggered checkpoint 30577 | -6/Garrison | Build established: Scavenger-Gunner 30578 | -6/Garrison | Triggered checkpoint 30673 | -6/Garrison | Discovered new exit (range 9) 30692 | -6/Garrison | Spotted B-75 Beast 30712 | -6/Garrison | Allies destroyed B-75 Beast 30733 | -6/Garrison | Triggered checkpoint 30760 | -6/Garrison | Triggered checkpoint 30861 | -6/Garrison | Discovered new exit (range 14) 30925 | -6/Garrison | Triggered checkpoint 30951 | -6/Garrison | Heavy support dispatched to Factory 31019 | -6/Garrison | Triggered checkpoint 31181 | -6/Garrison | Triggered checkpoint 31183 | -6/Garrison | Expanded RIF knowledge: Threat Obfuscation 31211 | -6/Garrison | Discovered new exit (range 15) 31300 | -6/Garrison | H-XX Assembler disabled 31405 | -6/Garrison | Garrison Relay disabled 31514 | -6/Garrison | Discovered new exit (range 3) 31608 | -6/Garrison | Entered Factory 31608 | -6/Factory | Accompanied by 10 allies 31618 | -6/Factory | Discovered new exit (range 2) 31796 | -6/Factory | Discovered new exit (range 4) 31930 | -6/Factory | Lost 4 parts (3n1w) 31958 | -6/Factory | First assault squad dispatched 32269 | -6/Factory | Lost 3 parts (1p1n1u) 32335 | -6/Factory | Lost 3 allies 32364 | -6/Factory | Identified exit to Garrison 32374 | -6/Factory | Entered Garrison 32374 | -6/Garrison | Accompanied by 1 ally 32441 | -6/Garrison | Core integrity fell below 20% 32497 | -6/Garrison | Triggered checkpoint 32579 | -6/Garrison | Triggered checkpoint 32711 | -6/Garrison | Discovered new exit (range 5) 32747 | -6/Garrison | Build established: Scavenger-Sprinter 32760 | -6/Garrison | Triggered checkpoint 32769 | -6/Garrison | Expanded RIF knowledge: Crosswire 32800 | -6/Garrison | Garrison Relay disabled 32927 | -6/Garrison | Expanded RIF knowledge: Hotswap 32998 | -6/Garrison | Discovered new exit (range 5) 33002 | -6/Garrison | Triggered checkpoint 33131 | -6/Garrison | Discovered new exit (range 8) 33193 | -6/Garrison | Entered Factory 33193 | -5/Factory | Evolved 2 slots: Power x1, Propulsion x1 33240 | -5/Factory | Build established: Sprinter 33304 | -5/Factory | Discovered new exit (range 17) 33420 | -5/Factory | Discovered new exit (range 3) 33488 | -5/Factory | Spotted B-75 Beast 33501 | -5/Factory | Discovered new exit (range 14) 33547 | -5/Factory | P-70 Sage assimilated allied Administrator 6b 33756 | -5/Factory | Sucked down chute 33756 | -5/Factory | Entered Waste 33759 | -5/Waste | Spotted C-40 Crusher 33763 | -5/Waste | Spotted C-40 Crusher 33764 | -5/Waste | Spotted C-40 Crusher 33764 | -5/Waste | Spotted C-40 Crusher 33772 | -5/Waste | Warlord forces began an assault 33784 | -5/Waste | Allies destroyed C-40 Crusher 33792 | -5/Waste | Allies destroyed C-40 Crusher 33792 | -5/Waste | Destroyed C-40 Crusher 33809 | -5/Waste | Spotted C-40 Crusher 33813 | -5/Waste | Allies destroyed C-40 Crusher 33814 | -5/Waste | Spotted C-40 Crusher 33817 | -5/Waste | Allies destroyed C-40 Crusher 33877 | -5/Waste | Discovered new exit (range 22) 34048 | -5/Waste | Build established: Scavenger-Gunner 34364 | -5/Waste | Entered Factory 34364 | -5/Factory | Accompanied by 16 allies 34373 | -5/Factory | Spotted B-75 Beast 34393 | -5/Factory | Allies destroyed B-75 Beast 34810 | -5/Factory | P-70 Sage assimilated allied V0-CDH(m) 35456 | -5/Factory | Cargo convoy interrupted 35488 | -5/Factory | Discovered new exit (range 10) 35659 | -5/Factory | Build established: Sprinter 35799 | -5/Factory | Identified exit to Garrison 35819 | -5/Factory | Discovered new exit (range 11) 35864 | -5/Factory | Search patrols dispatched 35880 | -5/Factory | Core integrity fell below 50% 35928 | -5/Factory | Destroyed 7 combat bots 35938 | -5/Factory | Lost 4 parts (1p1n2w) 35974 | -5/Factory | Identified exit to Garrison 35978 | -5/Factory | Assembled infested ambush trap array 35985 | -5/Factory | Entered Garrison 35995 | -5/Garrison | Triggered checkpoint 36007 | -5/Garrison | Found embedded Infiltrators 36040 | -5/Garrison | Garrison Relay disabled 36070 | -5/Garrison | System corruption reached 10% 36193 | -5/Garrison | Discovered new exit (range 9) 36206 | -5/Garrison | Triggered checkpoint 36231 | -5/Garrison | Garrison Relay disabled 36262 | -5/Garrison | Triggered checkpoint 36279 | -5/Garrison | Triggered checkpoint 36298 | -5/Garrison | P-70 Sage assimilated allied 6Z-Z6V(x) 36350 | -5/Garrison | Expanded RIF knowledge: Watcher Feeds 36426 | -5/Garrison | Discovered new exit (range 15) 36429 | -5/Garrison | Expanded RIF knowledge: Threat Obfuscation 36441 | -5/Garrison | Triggered checkpoint 36446 | -5/Garrison | Garrison Relay disabled 36559 | -5/Garrison | Garrison Relay disabled 36569 | -5/Garrison | Discovered new exit (range 15) 36600 | -5/Garrison | Build established: Scavenger-Sprinter 36603 | -5/Garrison | Triggered checkpoint 36647 | -5/Garrison | Garrison Relay disabled 36715 | -5/Garrison | Triggered checkpoint 36808 | -5/Garrison | Entered Factory 36808 | -5/Factory | Accompanied by 3 allies 36984 | -5/Factory | Fabricated Field Propulsion Array? 37034 | -5/Factory | Fabricated Graphene Brace (x2) 37179 | -5/Factory | Fabricated Hyp. Railgun? 37279 | -5/Factory | Lost 3 allies 37645 | -5/Factory | Discovered new exit (range 12) 37688 | -5/Factory | Discovered new exit (range 7) 37757 | -5/Factory | Identified exit to Garrison 37757 | -5/Factory | Entered Garrison 37766 | -5/Garrison | Build established: Machinist-Sprinter 37770 | -5/Garrison | Triggered checkpoint 37806 | -5/Garrison | Garrison Relay disabled 37891 | -5/Garrison | Triggered checkpoint 37906 | -5/Garrison | Triggered checkpoint 37906 | -5/Garrison | Triggered checkpoint 37999 | -5/Garrison | Destroyed 8 combat bots 38090 | -5/Garrison | Triggered checkpoint 38136 | -5/Garrison | Discovered new exit (range 15) 38227 | -5/Garrison | Garrison Relay disabled 38255 | -5/Garrison | Garrison Relay disabled 38261 | -5/Garrison | Triggered checkpoint 38279 | -5/Garrison | Expanded RIF knowledge: Code Merge 38287 | -5/Garrison | Discovered new exit (range 2) 38292 | -5/Garrison | Expanded RIF knowledge: Patrol Navigation 38344 | -5/Garrison | Triggered checkpoint 38397 | -5/Garrison | Garrison Relay disabled 38504 | -5/Garrison | Discovered new exit (range 15) 38752 | -5/Garrison | Entered Factory 38752 | -4/Factory | Evolved 2 slots: Propulsion x2 38787 | -4/Factory | Discovered new exit (range 8) 38803 | -4/Factory | Discovered new exit (range 7) 39005 | -4/Factory | Lost 7 parts (1p3n3w) 39045 | -4/Factory | Fabricated Enh. Quantum Rifle? 39074 | -4/Factory | Spotted B-86 Titan 39107 | -4/Factory | Lost 3 parts (2n1w) 39150 | -4/Factory | Spotted B-86 Titan 39249 | -4/Factory | Identified exit to Garrison 39249 | -4/Factory | Entered Garrison 39265 | -4/Garrison | Lost 3 parts (1n1u1w) 39276 | -4/Garrison | Core integrity fell below 50% 39303 | -4/Garrison | Triggered checkpoint 39321 | -4/Garrison | Triggered checkpoint 39381 | -4/Garrison | Core integrity fell below 20% 39388 | -4/Garrison | Build established: Mutant 39418 | -4/Garrison | Lost 5 parts (4n1u) 39444 | -4/Garrison | Garrison Relay disabled 39544 | -4/Garrison | Found embedded Infiltrators 39577 | -4/Garrison | Triggered checkpoint 39609 | -4/Garrison | Garrison Relay disabled 39666 | -4/Garrison | Spotted B-86 Titan 39712 | -4/Garrison | Build established: Scavenger-Sprinter 39733 | -4/Garrison | Triggered checkpoint 39735 | -4/Garrison | Triggered checkpoint 39751 | -4/Garrison | Triggered checkpoint 39755 | -4/Garrison | Allies destroyed B-86 Titan 39795 | -4/Garrison | Lost 11 allies 40020 | -4/Garrison | Discovered new exit (range 14) 40036 | -4/Garrison | Rescued a captive Derelict 40106 | -4/Garrison | Build established: Scavenger-Mutant 40280 | -4/Garrison | Triggered checkpoint 40316 | -4/Garrison | Garrison Relay disabled 40380 | -4/Garrison | Triggered checkpoint 40404 | -4/Garrison | Discovered new exit (range 3) 40440 | -4/Garrison | Build established: Scavenger-Gunner 40573 | -4/Garrison | Triggered checkpoint 40576 | -4/Garrison | Discovered new exit (range 13) 40666 | -4/Garrison | Lost 3 allies 40684 | -4/Garrison | Triggered checkpoint 40743 | -4/Garrison | Destroyed by X-72 Disruptor with Light Antimatter Reactor chain reaction Last Messages --------------- 40620_ Slug penetrates Sentinel 7b. 40626_ Sentinel 7b destroyed. 40629_ Slug penetrates Assassin 7f. 40629_ Slug penetrates Wall. 40629_ Slug penetrates Assassin 7f. 40629_ Slug penetrates Wall. 40632_ Slug penetrates Assassin 7f. 40632_ Slug penetrates Wall. 40633_ Wall collapses. 40635_ Slug penetrates Assassin 7f. 40635_ Assassin 7f destroyed. 40641_ RIF reveals location of phase wall. 40658_ System corrupted: Component data lost. 40680_ RIF reveals location of hidden door. 40684_ Beams of light sweep through the air. An alarm sounds. 40686_ RIF reveals location of phase wall. 40741_ H-77 Assassin rewired. 40743_ X-72 Disruptor springs to life. 40743_ Chain reaction triggered in Lgt. Antimatter Reactor. 40743_ H-77 Assassin destroyed. Map ----- +----------------------------------------------------+ | | | | | | | | | | | | | | | | | | | | | | | | | | | | | | | | | | | ???????????????????????????????????? | | ???????????????????????????????????? | | ???????????????????????????????????? | | ???????????????????????????????????? | | ???????????????????????????????????? | | ?????????##+;;;????????????????????? | | ?????????#x hh;????????????????????? | | ?????sss?#x h%?????????????????????? | | ??###"""###@;#?????????????????????? | | ??# #?????????????????????? | | ?#+ #?????????????????????? | | ?# ## ### #?????????????????????? | | ?# #"""???# #?????????????????????? | | ?# ###????# #?????????????????????? | | ?# #??????# #?????????????????????? | | ?# #??????# #?????????????????????? | | ?# #??????# ###???????????????????? | | ?# ######## #########???????????? | | ?# + + #???????????? | | ?########## ####### #???????????? | | ??????????# ###??#### #???????????? | | ??????????# #????# ## #???????????? | | ??????????# ###### ##########"## | | ??????????# %=[% *[= | | ??????????# [ % [[!%! | | ??????????#++##### "" < #########%[# | | ??????????# #???# ## #???????# # | | ??????????# ##### #######??????# # | | ??????????# ## #??????# # | | ??????????# ## #??????# # | | ??????????# ## #??????# # | | ??????????# ## #??????# # | | ??????????# ## =* #??????# # | +----------------------------------------------------+ Best States ------------- Heat Dissipation 59 Energy Generation 31 Energy Capacity 505 Matter Stores 500 Matter Capacity 500 Sight Range 22 Terrain Scan Density 10 Additional Mass Support 6 Base Temperature (-) 200 Armor Coverage 225 Propulsion Shielding 66 Weapon Cycling 25 Evasion (%) 66 Targeting Accuracy 20 Target Analysis 5 Core Analysis 9 Recoil Reduction 6 Force Boost 30 Salvage Targeting 4 Offensive Hacking 14 Defensive Hacking 12 Relay Coupler Types 6 Relay Coupler Value 70 Authchip Count 3 Item Schematics ----------------- Lgt. Treads | -10/Materials | Hacked Lgt. Assault Rifle | -10/Materials | Hacked Utility Shielding | -10/Materials | Hacked Autogun | -9/Materials | Hacked VTOL Module | -9/Materials | Hacked Datajack | -9/Materials | Scanalyzed Arm. Wheel | -9/Materials | Scanalyzed Imp. Datajack | -9/Materials | Scanalyzed Lgt. Neutrino Core | -8/Materials | Scanalyzed Cmb. Antigrav System | -8/Materials | Scanalyzed Enh. Autogun | -8/Materials | Scanalyzed Exp. Core Analyzer | -8/Materials | Scanalyzed Adv. Component Analysis Suite | -8/Materials | Scanalyzed Imp. Flight Unit | -8/Materials | Hacked Lgt. Ion Engine | -8/Materials | Hacked Adv. Weapon Cycler | -7/Factory | Scanalyzed Adv. Recoil Stabilizer | -7/Factory | Scanalyzed Cld. VTOL Module | -7/Factory | Scanalyzed Nuclear Pulse Array | -7/Factory | Scanalyzed Hyp. Coil Gun | -6/Factory | Scanalyzed Field Propulsion Array | -5/Factory | Scanalyzed Hyp. Railgun | -5/Factory | Scanalyzed Cld. Nuclear Pulse Thruster | -5/Factory | Scanalyzed Med. Storage Unit | -5/Factory | Hacked Robot Schematics ------------------ M-13 Machinist | -10/Materials | Hacked Fabricated ------------ Imp. Flight Unit | x1 | -7/Factory Cld. VTOL Module | x1 | -7/Factory | Authchip Nuclear Pulse Array | x1 | -6/Factory | Authchip Nuclear Pulse Array | x1 | -6/Factory | Authchip M-13 Machinist | x1 | -6/Factory | Authchip Field Propulsion Array | x1 | -5/Factory | Authchip Graphene Brace | x2 | -5/Factory | Preloaded Hyp. Railgun | x2 | -5/Factory | Authchip Enh. Quantum Rifle | x2 | -4/Factory | Preloaded Repaired ---------- Hvy. Assault Rifle | 18% | -9/Materials Imp. Assault Rifle | 15% | -8/Materials Rnf. Fission Core | 23% | -8/Materials Alien Tech Used ----------------- None Achievements -------------- None Challenges ------------ None Game ------ Seed PointNullRipper Manual? 0 Play Time 07:07:14 Cumulative 1055.5 hours Start 2025.07.12 @ 18:56:16 End 2025.07.13 @ 15:46:07 Sessions 5 Manual Loads 0 Difficulty Rogue Special Mode None Game No. 527 Rogue 527 Adventurer 0 Explorer 0 Win Type - Total 23 Types 10/4/3/0/1/1/2/2/0/0 Lore% 89 Gallery% 89 Achievement% 83 Wizard Run 0 Options --------- Layout 0 ASCII 0 Keyboard 0 Movement Numpad Keybinds 0 Fullscreen 2 Font 24/Smallcaps Map View 76x50 Zoom Use 0% Tactical HUD 1 Map Filters NONE Filters SHIFT_HUE(315) Steam 1 RUN: 6c01600e-381f-4962-a4b1-b50f131d47a4